Cogmind - Beta 16.1 @@@ ROGUE MODE // 2026.02.28 @ 12:24:02 Player: cptwinky Result: Defending 0bPrime! Performance ------------- Evolutions (8) 4000 Regions Visited (27) 5400 Robots Destroyed (826) 4130 Value Destroyed (50297) 50297 Prototype IDs (164) 3280 Alien Tech Used (7) 1400 Bonus (43466) 43466 TOTAL SCORE: 111973 Bonus ------- High Alert Combat Kills 27810 Follower Combat Kills 2916 Entered Garrisons 400 Used RIF Installer 500 Registered with UFD 300 Met Optimus in HQ 500 Met Imprinter 300 Met Zhirov 300 Met Optimus at Protoforge 1000 Executed Drillbomb Mission 10000 Win 3000 Friendly Fire -3560 Cogmind --------- Core Integrity 129/1450 Matter 300/300 Energy 1705/1705 System Corruption 38% Temperature Cool (0) Movement Flying (39) Location 0bPrime Parts ------- > --- POWER (3) -------- Neutrino Core (fused) Light Quantum Reactor Hybrid Graviton Reactor > --- PROPULSION (6) --- Impulse Thruster Array Impulse Thruster Array Impulse Thruster Array > --- UTILITY (11) ----- Concept Dimensional Manipulator Experimental Optical Array Experimental Targeting Computer Experimental Core Analyzer Concept Core Analysis Suite Experimental Reaction Control System Concept Cloak Mesh Concept Core Shell Centrium Light Armor Plating Concept RG22 Armor > --- WEAPON (4) ------- Concept Smart ZDS Experimental Jetlance (fused) > --- INVENTORY (5) ---- Improved Quantum Reactor Concept Chromion Battery (800) Concept NT7 Matterbank (750) Advanced KE Penetrator Concept Blasthammer Peak State ------------ > --- POWER ------------ Light Quantum Reactor Improved Quantum Reactor Hybrid Graviton Reactor > --- PROPULSION ------- Myomer Leg Enhanced Biometal Leg Concept Biometal Exoskeleton Concept Biometal Exoskeleton > --- UTILITY ---------- Concept Thermoelectric Network Huge Storage Unit Advanced Targeting Computer Experimental Core Analyzer Concept Core Analysis Suite Concept RG22 Armor Concept RG22 Armor Concept Beam Splitter Concept Energy Mantle Ghost Barrier Concept Matter Streamer > --- WEAPON ----------- Concept Plasma Driver Concept Smart ZDS Sigix Broadsword > --- INVENTORY -------- Overtuned Flexi-carbon Leg Concept Chromion Battery Concept NT7 Matterbank Concept Dimensional Manipulator Concept Cloak Mesh Concept Cloak Mesh Experimental EM Shield Concept Lightning Penetrator Concept Plasma Driver Concept XC Strikerail Perforator Concept Helical Railcannon Concept Rapid Grenade Launcher Concept Tiamat Rocket Array Concept Blasthammer Experimental Jetlance [Rating: 281] Favorites ----------- Power Reinforced Fission Core Engine Reinforced Deuterium Engine Power Core Reinforced Fission Core Reactor Zero-point Reactor Propulsion Flexi-carbon Leg Treads Improved Treads Leg Flexi-carbon Leg Wheel Subdweller Monowheel Hover Unit Cooled Aerolev Unit Flight Unit Impulse Thruster Array Utility Core Analyzer Device Advanced Sensor Array Storage High-capacity Storage Unit Processor Core Analyzer Hackware Ghost Barrier Protection Concept RG22 Armor Weapon Heavy Machine Gun Energy Gun Dispersion Rifle Energy Cannon Concept Plasma Driver Ballistic Gun Heavy Machine Gun Ballistic Cannon Battle Cannon Launcher Concept Smart ZDS Special Weapon Improved Remote Datajack Impact Weapon Core Stripper Slashing Weapon Sigix Broadsword Piercing Weapon Experimental Jetlance Special Melee Weapon Improved Datajack Build | -11 -10 -10 -9 -9 -6 -6 -6 -6 -6 -6 -5 -5 -5 -5 -5 -5 -5 -4 -4 -4 -4 -3 -3 -3 -2 -2 -2 ------- Run | Yrd Mat Sub Rec Scr Fac Was Fac Low Low Zio Pro Fac Was Fac Gar Fac Gar Fac Upp Upp Zhi Pro Res Tes Res Qua Frg Slots Evolved 16 | . . . . . 8 . . . . . . 2 . . . . . 2 . . . . 2 . 2 . . Power 1 | . . . . . 1 . . . . . . . . . . . . . . . . . . . . . . Propulsion 4 | . . . . . 2 . . . . . . 2 . . . . . . . . . . . . . . . Utility 9 | . . . . . 4 . . . . . . . . . . . . 2 . . . . 1 . 2 . . Weapon 2 | . . . . . 1 . . . . . . . . . . . . . . . . . 1 . . . . Parts Attached 412 | 6 5 18 2 7 35 12 17 8 3 6 8 7 1 16 14 15 17 7 13 7 4 3 26 33 17 12 93 Power 62 | 1 1 2 . 1 5 2 3 1 . 2 2 1 1 3 2 3 2 . 2 . 1 . 1 5 3 3 15 Engine 16 | 1 1 2 . 1 3 1 1 1 . 1 . 1 . 1 1 . . . . . . . . 1 . . . Core 21 | . . . . . 2 . 2 . . 1 2 . 1 2 1 3 2 . 2 . . . 1 1 . . 1 Reactor 25 | . . . . . . 1 . . . . . . . . . . . . . . 1 . . 3 3 3 14 Propulsion 106 | 2 . 5 1 2 5 4 5 1 1 . 1 5 . 5 3 6 7 2 3 5 2 1 5 6 4 1 24 Treads 5 | 2 . . 1 1 1 . . . . . . . . . . . . . . . . . . . . . . Leg 89 | . . . . . 4 3 4 1 1 . 1 5 . 5 3 6 7 2 3 5 2 1 5 6 4 1 20 Wheel 7 | . . 5 . 1 . 1 . . . . . . . . . . . . . . . . . . . . . Hover 1 | . . . . . . . 1 . . . . . . . . . . . . . . . . . . . . Flight 4 | . . . . . . . . . . . . . . . . . . . . . . . . . . . 4 Utility 141 | 1 . 4 1 3 15 3 6 3 1 1 2 1 . 6 3 1 4 3 6 . 1 2 12 16 5 4 37 Device 61 | . . 2 . . 8 2 2 1 1 1 2 . . 3 . 1 3 1 4 . . 1 5 7 1 4 12 Storage 11 | 1 . . 1 2 1 . . . . . . . . 1 . . . . . . . . 1 2 . . 2 Processor 19 | . . . . . 3 . . 1 . . . . . . . . . 2 . . . 1 2 1 2 . 7 Hackware 14 | . . . . . . . 1 . . . . . . 1 2 . . . 2 . . . 4 1 2 . 1 Protection 36 | . . 2 . 1 3 1 3 1 . . . 1 . 1 1 . 1 . . . 1 . . 5 . . 15 Artifact . | . . . . . . . . . . . . . . . . . . . . . . . . . . . . Weapon 103 | 2 4 7 . 1 10 3 3 3 1 3 3 . . 2 6 5 4 2 2 2 . . 8 6 5 4 17 Energy Gun 13 | . 1 . . . 2 2 . . . . . . . . . . . . . . . . 6 . . . 2 Energy Cannon 10 | . . . . . 1 . . . 1 . . . . . 1 . . . . . . . 1 1 2 . 3 Ballistic Gun 36 | 2 . . . . 3 . . 3 . 1 3 . . 1 5 4 4 1 2 1 . . . 2 . . 4 Ballistic Cannon 16 | . 2 5 . . 1 . 1 . . . . . . 1 . . . . . . . . . 3 1 . 2 Launcher 12 | . . . . . 2 . 2 . . 1 . . . . . . . 1 . . . . . . 1 1 4 Special Weapon 4 | . 1 . . 1 1 . . . . . . . . . . 1 . . . . . . . . . . . Impact Weapon 3 | . . 1 . . . . . . . . . . . . . . . . . . . . . . . 1 1 Slashing Weapon 5 | . . 1 . . . 1 . . . . . . . . . . . . . . . . 1 . . 2 . Piercing Weapon 1 | . . . . . . . . . . . . . . . . . . . . . . . . . . . 1 Special Melee Weapon 3 | . . . . . . . . . . 1 . . . . . . . . . 1 . . . . 1 . . Unidentified Prototypes 42 | . . . . . 1 1 1 . . . . 1 . 1 . 1 . 2 1 . 4 . 3 9 2 6 9 Corrupted Parts 5 | . . . . . . . . . . . . . . . . . 3 . . . . . . 2 . . . System Corruption 37 | . . . . . . . . . . . . . . . . . 26 . . . . . . 11 . . . Parts Lost 150 | . . 7 . . 17 . 2 . . . . 3 2 1 7 10 11 3 3 1 . 5 7 10 7 . 54 Power 20 | . . 1 . . 2 . 1 . . . . . . . 1 1 . . . . . . . 3 3 . 8 Propulsion 40 | . . 3 . . 3 . . . . . . 1 1 . 2 5 5 1 . 1 . 1 2 . . . 15 Utility 44 | . . 2 . . 7 . . . . . . 2 . . 1 2 3 2 . . . 3 1 2 1 . 18 Weapon 46 | . . 1 . . 5 . 1 . . . . . 1 1 3 2 3 . 3 . . 1 4 5 3 . 13 Highest Loss Streak 19 | . . 2 . . 8 . 1 . . . . 1 2 1 4 4 9 2 2 1 . 2 5 9 2 . 19 To Critical Strikes 1 | . . . . . . . . . . . . . . . . . . . . . . . . . 1 . . Average Backups 16 | 4 7 7 6 11 12 16 18 18 18 18 18 17 17 16 16 16 16 16 16 17 17 17 16 18 20 21 18 Power . | . . . . . . . . . 1 . . . . . . 1 . . 1 2 2 2 1 . . . . Propulsion 1 | 2 3 1 2 2 1 2 3 3 3 2 3 . 1 1 1 . 1 1 1 1 1 1 2 3 3 2 . Utility 7 | . 1 . . 3 6 9 10 9 10 9 10 10 10 9 9 9 9 6 6 7 7 7 7 10 8 9 8 Weapon 5 | . 2 5 4 6 4 4 4 4 4 4 4 3 4 3 3 3 4 5 5 5 4 3 2 1 5 6 8 Tool/Special . | . . . . . . . . . . . . . . . . . . . . . . . . . . . . Unused Backups 66 | . 2 4 . 22 3 2 4 . 1 2 . . 1 2 1 1 . 1 . . 2 . 1 6 1 3 7 Power 6 | . . . . 1 1 . . . . . . . . . 1 1 . . . . . . 1 . 1 . . Propulsion 11 | . 2 1 . 2 . 1 2 . . . . . 1 . . . . 1 . . . . . . . 1 . Utility 28 | . . 1 . 11 2 . 2 . 1 . . . . . . . . . . . 1 . . 6 . 1 3 Weapon 18 | . . 2 . 8 . 1 . . . 2 . . . 2 . . . . . . 1 . . . . . 2 Tool/Special 3 | . . . . . . . . . . . . . . . . . . . . . . . . . . 1 2 Average Slot Usage (%) 92 | . 84 94 100 98 74 94 99 99 100 100 100 99 97 98 99 96 89 94 98 95 97 95 96 92 89 86 81 Engine 5 | . 14 11 14 13 6 5 8 12 13 12 5 10 5 3 2 . . . . . . . . 3 . . . Core 3 | . . . . . 2 6 4 . . . 6 . 4 6 7 10 11 10 10 10 10 10 9 1 . . . Reactor 2 | . . . . . . . . . . . . . . . . . . . . . 2 5 4 7 10 10 9 Treads 4 | . 28 10 13 22 5 . . . . . . . . . . . . . . . . . . . . . . Leg 19 | . . . . . 13 22 25 26 26 26 26 34 33 34 34 32 28 30 29 30 30 29 26 27 24 20 14 Wheel 1 | . . 17 14 5 . . . . . . . . . . . . . . . . . . . . . . . Device 8 | . . 1 . . 10 14 6 4 5 6 6 7 11 10 5 7 3 16 20 20 16 16 16 15 6 7 11 Storage 6 | . 14 14 14 13 5 6 6 6 6 6 6 5 5 5 5 5 5 5 5 5 5 5 4 4 4 4 4 Processor 11 | . . . . . 3 12 13 19 20 20 20 17 17 17 17 17 17 15 15 15 15 12 13 10 18 18 14 Hackware 1 | . . . . . . . 5 . . . . . . . 1 2 . . . . . . 4 4 8 5 3 Protection 6 | . . 9 14 13 6 4 5 7 6 5 6 2 . . 3 . 3 . . . 3 1 . 3 4 4 8 Energy Gun 1 | . 1 . . . 1 7 11 . . . . . . . . . . . . . . . 4 1 . . . Ballistic Gun 6 | . 19 . . . 3 6 6 17 19 17 19 15 10 8 15 16 15 14 14 12 10 15 6 3 1 . . Ballistic Cannon 6 | . 6 24 27 27 7 . . . . . . . . 3 . . . . . . . . . 3 1 . 1 Slashing Weapon 1 | . . 3 . . . 4 . . . . . . . 2 . . 1 . . 2 1 . 2 3 3 8 3 Peak Build Rating 281 | 6 7 20 20 25 80 82 76 78 74 78 85 92 93 99 97 106 110 120 119 114 123 125 162 193 217 221 281 Average Rating 110 | 5 6 13 18 20 66 75 72 73 73 73 78 90 89 91 90 96 100 111 113 109 115 117 141 171 192 211 237 On Entrance 88 | . 6 7 20 18 24 73 70 73 74 73 77 83 91 76 96 90 91 99 101 114 110 120 125 161 193 193 218 Avg Prop Armor Cover (%) 7 | . . 9 9 10 7 . 1 . . . . . . 3 . . . . . . . . . . . . . Naked Turns . | . . . . . . . . . . . . . . . . . . . . . . . . . . . . Heaviest Build 203 | 10 14 20 55 61 85 85 85 84 73 88 90 96 93 97 95 96 101 91 104 104 122 123 146 172 186 203 202 Greatest Support 206 | 40 40 40 20 53 90 90 80 80 76 76 76 108 104 107 107 140 144 136 136 128 140 140 180 180 176 176 206 Greatest Overweight (x) 4 | . . 1 2 2 1 2 1 1 . 1 1 . 1 1 1 . 1 . . 1 . 1 1 . 1 1 4 Average Overweight (x) . | . . . 1 . . . . . . . . . . . . . . . . . . . . . . . . Largest Inventory Capacity 25 | 8 8 8 20 20 20 20 20 20 20 20 20 20 20 20 20 20 20 20 20 20 20 20 20 25 25 25 25 Average Capacity 19 | 7 8 8 18 17 16 20 20 20 20 20 20 20 20 20 20 20 20 20 20 20 20 20 20 20 25 25 22 Most Carried 25 | 7 8 8 8 20 20 20 20 20 20 20 20 20 20 20 20 20 20 20 20 20 20 20 20 21 25 25 25 Average Carried 18 | 4 7 7 8 14 14 19 19 19 19 19 19 19 19 19 19 19 18 17 18 20 19 19 19 19 22 24 20 Final Capacity 25 | 8 8 8 20 15 20 20 20 20 20 20 20 20 20 20 20 20 20 20 20 20 20 20 20 25 25 25 5 Final Carried 25 | 7 8 8 8 14 20 20 19 20 20 20 20 20 20 20 20 16 16 20 20 20 20 20 19 20 25 25 5 Class Distribution -------------------- 31% | Scavenger-Gunner 17% | Scavenger-Mutant 13% | Commander-Mutant 9% | Hacker-Mutant 8% | Mutant 3% | Hacker-Assassin 3% | Gunner Dominant Class ---------------- Mutant | -10/Materials Mutant | -10/Subcaves Commander-Mutant | -9/Recycling Commander-Mutant | -9/Scraptown Tank | -6/Factory Mutant | -6/Waste Scavenger-Gunner | -6/Factory Scavenger-Gunner | -6/Lower Caves Scavenger-Gunner | -6/Lower Caves Scavenger-Gunner | -6/Zion Scavenger-Gunner | -5/Proximity Caves Scavenger-Gunner | -5/Factory Scavenger-Gunner | -5/Waste Scavenger-Mutant | -5/Factory Scavenger-Gunner | -5/Garrison Scavenger-Gunner | -5/Factory Scavenger-Gunner | -5/Garrison Scavenger-Gunner | -4/Factory Scavenger-Gunner | -4/Upper Caves Scavenger-Gunner | -4/Upper Caves Scavenger-Gunner | -4/Zhirov Scavenger-Gunner | -3/Proximity Caves Scavenger-Gunner | -3/Research Commander-Skirmisher | -3/Testing Hacker-Mutant | -2/Research Hacker-Assassin | -2/Quarantine Scavenger-Mutant | -2/Protoforge Resources | -11 -10 -10 -9 -9 -6 -6 -6 -6 -6 -6 -5 -5 -5 -5 -5 -5 -5 -4 -4 -4 -4 -3 -3 -3 -2 -2 -2 ----------- Run | Yrd Mat Sub Rec Scr Fac Was Fac Low Low Zio Pro Fac Was Fac Gar Fac Gar Fac Upp Upp Zhi Pro Res Tes Res Qua Frg Matter Collected 35520 | 278 99 780 50 60 1547 150 858 369 104 81 250 717 . 1979 699 651 735 417 721 327 123 619 612 1072 972 769 20481 Remotely 8783 | . . . . . . . . . . . . . . . . . . . . . . . . . . . 8783 Salvage Created 35762 | 100 171 350 28 . 2002 505 2809 102 65 . 270 895 . 2350 998 1436 1171 994 1257 146 359 718 1012 1057 1401 1834 13732 Parts 1536 | 11 7 31 2 . 83 12 108 13 5 . 13 40 . 94 53 71 59 47 42 4 5 18 49 42 65 96 566 Haulers Intercepted 5 | . . . . . . . 2 . . . . 1 . . . . . 1 . . . . 1 . . . . Recyclers Shooed 17 | . . . . . 5 . 4 . . . . . . 1 . 4 . 2 . . . . 1 . . . . Parts Field Recycled . | . . . . . . . . . . . . . . . . . . . . . . . . . . . . Retrieved Matter . | . . . . . . . . . . . . . . . . . . . . . . . . . . . . Parts Self-Destructed 122 | . . 11 . . . . . 6 3 . 26 . . . . . . . 32 13 2 29 . . . . . Prevented 2 | . . . . . . . . . . . 1 . . . . . . . 1 . . . . . . . . Parts Restored 6 | . . . . . . . . . . . . . . . . . . . . . . . . . . . 6 Faulty 6 | . . . . . . . . . . . . . . . . . . . . . . . . . . . 6 Kills | -11 -10 -10 -9 -9 -6 -6 -6 -6 -6 -6 -5 -5 -5 -5 -5 -5 -5 -4 -4 -4 -4 -3 -3 -3 -2 -2 -2 ------- Run | Yrd Mat Sub Rec Scr Fac Was Fac Low Low Zio Pro Fac Was Fac Gar Fac Gar Fac Upp Upp Zhi Pro Res Tes Res Qua Frg Combat Hostiles Destroyed 689 | . 4 17 1 . 34 . 42 5 1 . 1 16 . 40 25 21 16 15 16 2 . 11 9 14 17 22 360 Melee 22 | . . . 1 . . . . . . . 1 . . . . . . . . . . . 2 3 4 5 6 Guns 174 | . 4 . . . 6 . 32 1 1 . . 13 . 11 12 15 16 11 14 2 . 11 2 4 . . 19 Cannons 170 | . . 17 . . 14 . 1 1 . . . 2 . 17 3 . . . . . . . 3 2 12 12 86 AOE 293 | . . . . . 13 . 9 3 . . . 1 . 12 8 6 . 2 2 . . . . 4 . 4 229 Classes Destroyed 38 | 1 1 2 1 . 10 1 3 1 . . 1 . . . 1 1 . 1 2 . . 1 . 1 . 1 9 Worker 21 | . . . . . 3 . 6 . . . . . . 2 . 2 . . . . . . 3 3 1 . 1 Builder 24 | . . . . . 3 . 1 . . . . . . 2 . 7 . 2 . . . . 1 3 1 1 3 Tunneler 8 | 5 . . . . 1 . 2 . . . . . . . . . . . . . . . . . . . . Hauler 5 | . . . . . . . 2 . . . . 1 . . . . . 1 . . . . 1 . . . . Recycler 17 | . . . . . 6 . 3 . . . . . . 4 . 2 . 1 . . . . 1 . . . . Carrier 3 | . . . . . . . . . . . . . . . . . . . . . . . . . . . 3 Minesweeper 2 | . . . . . . . . . . . . . . . . . . . 1 . . 1 . . . . . Mechanic 25 | . . . . . 2 . . . . . . . . . . 1 . . . . . . 1 . . . 21 Operator 13 | . . . . . 1 . . . . . . . . . . . . 1 . . . . 1 2 1 5 2 Drone 16 | . . . . . . . . . . . . . . . . . . . . . . 1 . . . . 15 Watcher 6 | . . . . . . . 1 . . . . . . . . . . . . . . . . 2 1 2 . Swarmer 127 | . . . . . 9 . 8 4 . . . 7 . 8 9 3 . 7 4 . . . . 6 . 5 57 Saboteur 14 | . . . . . . . . . . . . . . . . . . 1 . . . . . . . . 13 Grunt 152 | . 4 . . . 8 . 21 . . . . 7 . 20 8 5 3 4 5 1 . 7 3 8 . . 48 Brawler 31 | . . . . . 1 . 2 . . . . 1 . 1 2 1 . . 5 . . . . . . . 18 Duelist 25 | . . . . . . . 1 . . . . . . . 1 . . . . . . 2 . . . . 21 Protector 12 | . . . 1 . . . 1 . . . . . . . . 1 . . . . . . . . . . 9 Researcher 2 | . . . . . . . . . . . . . . . . . . . . . . . . 1 . . 1 Sentry 35 | . . 1 . . 3 . 3 . . . . . . 3 2 . 4 1 2 . . 1 . . 1 3 11 Specialist 10 | . . . . . . . . . . . . . . . . 2 . . . . . . . . . 2 6 Hunter 65 | . . . . . 8 . 2 . 1 . 1 . . 1 2 5 . 2 . . . . 2 . 14 . 27 Programmer 86 | . . . . . 5 . 4 . . . . 1 . 7 . 4 9 . . . . . 4 . 2 11 39 Heavy 1 | . . . . . 1 . . . . . . . . . . . . . . . . . . . . . . Behemoth 2 | . . . . . . . . . . . . . . . 1 . . . . . . . . . . . 1 Hotshot 3 | . . . . . . . . . . . . . . . . . . . . . . . . . . . 3 Decapitator 5 | . . . . . . . . . . . . . . . . . . . . . . . . . . . 5 Immortal 4 | . . . . . . . . . . . . . . . . . . . . . . . . . . . 4 Overlord 1 | . . . . . . . . . . . . . . . . . . . . . . . . . . . 1 Striker 37 | . . . . . . . . . . . . . . . . . . . . . . . . . . . 37 Executioner 41 | . . . . . . . . . . . . . . . . . . . . . . . . . . . 41 Alpha 7 4 | . . . . . . . . . . . . . . . . . . . . . . . . . . . 4 Fortress 1 | . . . . . . . . . . . . . . . . . . . . . . . . . . 1 . Subdweller 16 | . . 16 . . . . . . . . . . . . . . . . . . . . . . . . . Ranger 3 | . . . . . . . . . . . 3 . . . . . . . . . . . . . . . . Scrapper 2 | . . . . . . . . . . . . . . . . . . . . . . . . . . . 2 Scrapoid 2 | . . . . . . . . . . . . . . . . . . . . . . . . . . . 2 Scraphulk 1 | . . . . . . . . . . . . . . . . . . . . . . . . . . . 1 Samaritan 1 | . . . . . . . . . . . . . . . . . . . 1 . . . . . . . . Tinkerer 1 | . . . . . . . . . . . . . . . . . . . . . . . . . . . 1 Surgeon 1 | . . . . . . . 1 . . . . . . . . . . . . . . . . . . . . Thug 1 | . . . . . . . . . . . . . . . . . . . 1 . . . . . . . . Martyr 1 | . . . . . . 1 . . . . . . . . . . . . . . . . . . . . . Mutant 2 | . . . . . . . . 1 . . . . . . . . . . . 1 . . . . . . . Best Kill Streak 26 | 4 2 2 1 . 10 . 6 2 1 . 1 5 . 7 10 9 5 7 4 1 . 3 5 14 5 4 26 Combat Bots Only 24 | . 2 2 1 . 6 . 5 2 1 . 1 5 . 5 10 9 5 5 4 1 . 3 3 12 5 4 24 Max Kills in Single Turn 9 | 1 1 1 1 . 4 1 4 2 1 . 1 3 . 4 3 6 1 2 2 1 . 1 1 3 1 2 9 Gunslinging 1 | . . . . . . . 1 . . . . . . . 1 . . . . . . . . . . . . Exploded 8 | . . . . . 2 . 3 2 . . . 1 . 4 3 4 . 1 2 . . . . 2 . 2 8 Melee 1 | . . . 1 . . . . . . . 1 . . . . . . . . . . . 1 1 1 1 1 Uniques/NPCs Destroyed . | . . . . . . . . . . . . . . . . . . . . . . . . . . . . Combat | -11 -10 -10 -9 -9 -6 -6 -6 -6 -6 -6 -5 -5 -5 -5 -5 -5 -5 -4 -4 -4 -4 -3 -3 -3 -2 -2 -2 -------- Run | Yrd Mat Sub Rec Scr Fac Was Fac Low Low Zio Pro Fac Was Fac Gar Fac Gar Fac Upp Upp Zhi Pro Res Tes Res Qua Frg Hostile Shots Fired 3486 | . 22 80 . . 274 . 156 9 6 . 25 76 2 154 87 183 143 94 31 25 . 73 135 126 223 142 1420 Missed 1092 | . 8 30 . . 85 . 46 4 1 . 7 6 . 49 20 40 45 46 12 9 . 20 43 36 68 33 484 Deflected 15 | . . . . . . . . . . . . . . . . 6 2 . . . . . . . . . 7 Hits 2394 | . 14 50 . . 189 . 110 5 5 . 18 70 2 105 67 143 98 48 19 16 . 53 92 90 155 109 936 Melee 73 | . . . . . . . . . . . . 1 2 . . . . . . 1 . 2 . . . . 67 Projectile 2321 | . 14 50 . . 189 . 110 5 5 . 18 69 . 105 67 143 98 48 19 15 . 51 92 90 155 109 869 AOE 4 | . . . . . . . 1 . . . . . . . . . . . . . . . . . . . 3 Critical Strikes 117 | . . 1 . . 6 . . . . . . 3 2 3 3 6 6 2 1 1 . 4 6 1 7 5 60 Actively Blocked 50 | . . . . . . . . . . . . . . . . . . . 1 1 . 4 6 1 2 2 33 Part Disruptions 16 | . . . . . . . . . . . . . . . . . 2 . . . . . 3 . . 3 8 Actively Blocked 2 | . . . . . . . . . . . . . . . . . . . . . . . . . . . 2 Damage Taken 44866 | . 199 1249 . . 2686 . 1767 70 86 . 305 1259 101 1867 1262 2672 1996 895 411 376 . 1172 1086 1951 2755 2024 18677 Core 3148 | . 29 178 . . 119 . 210 16 . . 43 107 . 165 144 205 275 69 23 40 . 65 12 127 160 . 1161 Absorbed by Shields 9334 | . . . . . 563 . . . . . 99 157 . 200 146 . . . . . . . 761 48 427 1067 5866 Redirected to Shielding 1423 | . . . . . . . . . . . . . . . . . . . . . . 162 . 53 . . 1208 Ignored by Resistances 4907 | . . . . . . . . . . . . . . . . . . . . . . . . . . . 4907 Regen/Repaired (Parts) 10089 | . . . . . 56 205 437 . . 512 . . . 546 . . . . . . . . . . 384 1766 6183 Core Remaining (%) 51 | 100 . . . 17 . . . . . . 54 . . . . . 10 . . . . 82 . 89 . . 8 Volleys Fired 1409 | 9 20 70 . 1 97 24 76 6 4 . 4 39 . 93 60 54 44 32 42 14 3 37 37 44 54 69 476 Largest 4 | 2 2 2 . 1 3 1 3 3 3 . 3 3 . 3 3 3 3 3 3 3 1 3 4 4 1 2 4 Hottest 420 | 40 100 66 . . 160 88 179 91 91 . 96 158 . 150 150 99 156 99 99 90 7 93 198 240 120 174 420 Shots Fired 2534 | 18 39 139 . 1 194 24 218 10 8 . 12 105 . 218 103 125 122 70 113 38 3 109 47 68 54 70 626 Gun 1403 | 18 38 . . . 63 24 209 6 6 . 12 94 . 125 73 106 119 58 107 38 . 109 15 47 . . 136 Cannon 930 | . . 139 . . 114 . 4 1 2 . . 11 . 83 21 15 3 8 3 . . . 19 21 54 67 365 Launcher 178 | . . . . . 17 . 5 3 . . . . . 10 9 . . 4 2 . . . . . . 3 125 Special 23 | . 1 . . 1 . . . . . . . . . . . 4 . . 1 . 3 . 13 . . . . Kinetic 1541 | 18 29 139 . . 132 . 75 7 6 . 12 94 . 186 73 106 119 58 107 38 . 109 14 30 12 3 174 Thermal 535 | . 1 . . . 9 24 138 . 2 . . 11 . 22 7 15 3 . 3 . . . 13 . 14 64 209 Explosive 172 | . . . . . 17 . 5 3 . . . . . 10 9 . . . . . . . . . . 3 125 Electromagnetic 264 | . 9 . . . 36 . . . . . . . . . 14 . . 12 2 . . . 7 38 28 . 118 Robot Hit Streak 48 | 8 7 14 . 11 18 13 21 1 4 . 4 48 . 14 20 24 24 28 26 21 10 19 18 16 5 7 27 Robot Miss Streak 17 | 1 3 3 . . 4 1 3 3 1 . 3 2 . 3 2 2 4 4 1 1 . 1 1 4 4 4 17 Penetration Max 3 | . . . . . 1 . 2 . . . . 3 . 3 1 1 1 1 . . . . . 1 . . 2 Secondary Targets 39 | . . . . . 1 . 9 . . . . 3 . . 5 3 7 2 1 1 . 2 . 1 . . 4 Max Gunslinging Chain 1 | . . . . . 1 . 1 . . . . 1 . . 1 1 1 1 1 1 . 1 . 1 . . 1 Shots Hit Robots 1815 | 15 27 102 1 1 110 28 171 2 4 1 15 74 . 143 65 89 97 43 83 35 10 90 63 55 41 71 379 Core Hits 1766 | 9 11 32 1 . 89 6 110 6 3 . 5 35 . 83 48 58 40 32 39 14 3 39 19 29 21 30 1004 Critical Kills 81 | . . . . . . . 7 1 . . . 4 . 21 1 2 2 2 2 . . . . . . . 39 Critical Parts Destroyed 94 | . 1 . . . . 1 10 . . . . 8 . 20 . 2 5 1 . 1 . . 1 . . . 44 Critical Strikes 224 | . 1 2 . . 5 5 21 1 . . 1 12 . 43 2 4 9 3 2 1 . . 5 2 1 3 101 Burn 3 | . . . . . . . 3 . . . . . . . . . . . . . . . . . . . . Meltdown 6 | . . . . . . . . . . . . . . . . . . . . . . . . . . . 6 Destroy 188 | . 1 . . . . 4 18 1 . . . 12 . 42 2 4 8 3 2 1 . . 1 . . . 89 Blast 10 | . . 2 . . 3 . . . . . . . . . . . . . . . . . . 2 1 2 . Corrupt 7 | . . . . . 2 . . . . . . . . . . . . . . . . . 1 . . . 4 Sever 9 | . . . . . . 1 . . . . 1 . . 1 . . 1 . . . . . 3 . . 1 1 Impale 1 | . . . . . . . . . . . . . . . . . . . . . . . . . . . 1 Melee Attacks 338 | . . 22 1 . 6 7 15 1 . 1 11 3 . 18 . . 15 . 4 23 10 . 36 43 19 65 38 Kinetic 4 | . . . . . . . . . . . . . . . . . . . . . . . . . . 2 2 Impact 4 | . . 1 . . . . . . . . . . . . . . . . . . . . . . . . 3 Slashing 289 | . . 21 1 . 6 7 15 1 . . 11 2 . 17 . . 15 . 4 22 10 . 33 29 16 59 20 Piercing 13 | . . . . . . . . . . . . . . . . . . . . . . . . . . . 13 Sneak Attacks 51 | . . . 1 . 3 1 7 . . 1 3 1 . 3 . . . . 3 2 . . 8 6 5 2 5 Combat Hostiles 2 | . . . . . . . . . . . 1 . . . . . . . . 1 . . . . . . . Follow-up Attacks 10 | . . . . . . . . . . . . . . . . . . . . . . . . . . 10 . Damage Inflicted 149413 | 149 276 1741 66 . 6053 1194 5726 342 61 . 660 1681 . 4980 3159 4441 3001 2066 2022 807 645 2012 2470 3264 2614 4753 95230 Guns 25289 | 146 242 . . . 1100 621 3938 36 61 . 149 1446 . 1644 1095 2154 2545 1031 1696 747 . 2012 233 756 . . 3637 Cannons 25605 | . . 1741 . . 1978 . 118 10 . . . 135 . 1168 434 321 63 171 . . . . 619 893 1779 1857 14318 Explosions 87088 | . 34 . . . 2581 . 790 291 . . . . . 1738 1593 1912 . 839 90 . . . . 682 . 474 76064 Melee 10736 | . . . 66 . 249 573 781 . . . 511 . . 374 . . 393 . 236 60 645 . 1505 933 798 2422 1190 Ramming 695 | 3 . . . . 145 . 99 5 . . . 100 . 56 37 54 . 25 . . . . 113 . 37 . 21 Kinetic 30218 | 146 163 1741 . . 2121 . 1553 46 61 . 149 1446 . 2434 1095 2154 2545 1031 1696 747 . 2012 228 837 968 266 6779 Thermal 16781 | . 34 . . . 531 621 2503 . . . . 135 . 378 68 983 63 406 . . . . 392 682 181 1615 8189 Explosive 84366 | . . . . . 2297 . 790 291 . . . . . 1642 1593 1250 . . . . . . . . . 474 76029 Electromagnetic 6676 | . 79 . . . 710 . . . . . . . . 96 366 . . 604 90 . . . 232 812 630 . 3057 Impact 106 | . . . . . . . . . . . . . . . . . . . . . . . . . . . 106 Slashing 10357 | . . . 66 . 249 573 781 . . . 511 . . 374 . . 393 . 236 60 645 . 1505 933 798 2398 835 Piercing 214 | . . . . . . . . . . . . . . . . . . . . . . . . . . . 214 Highest Corruption 38 | . . . . . 3 . . . . . . 2 8 8 . 2 35 . . . . . 13 11 . 4 38 Average Corruption 14 | . . . . . 1 . . . . . . 2 7 2 . 1 8 . . . . . 9 4 . 1 21 Corruption Purged 33 | . . . . . 3 . . . . . . . . 10 . . 3 . . . . . 7 6 . 4 . Corruption Blocked 15 | . . . . . . . . . . . . . . . . . . . . . . . . . 2 13 . Effects 383 | . . . . . 14 . . . . . . 2 2 7 . 4 18 . . . . . 21 18 . 7 290 Message Errors 87 | . . . . . 5 . . . . . . 1 . 3 . . 7 . . . . . 8 5 . 3 55 Matter Fused 82 | . . . . . 4 . . . . . . 1 1 . . . 3 . . . . . 8 2 . 3 60 Heat Flow Errors 28 | . . . . . . . . . . . . . . . . . 2 . . . . . . 1 . . 25 Energy Discharges 45 | . . . . . 2 . . . . . . . . 1 . . 2 . . . . . . 1 . 1 38 Parts Rejected 10 | . . . . . . . . . . . . . . 1 . 2 . . . . . . . . . . 7 Parts Fused 8 | . . . . . . . . . . . . . . . . . . . . . . . . . . . 8 Data Loss (minor) 39 | . . . . . . . . . . . . . 1 . . 1 2 . . . . . . 1 . . 34 Data Loss (major) 20 | . . . . . 1 . . . . . . . . 1 . . . . . . . . 2 2 . . 14 Misfires 12 | . . . . . 2 . . . . . . . . . . 1 1 . . . . . 1 4 . . 3 Alerts 6 | . . . . . . . . . . . . . . 1 . . . . . . . . . 1 . . 4 Misdirections 11 | . . . . . . . . . . . . . . . . . . . . . . . 2 . . . 9 Weapon Failures 35 | . . . . . . . . . . . . . . . . . 1 . . . . . . 1 . . 33 Overload Shots . | . . . . . . . . . . . . . . . . . . . . . . . . . . . . Overflow Damage 8115 | . . . . . 435 131 244 . . . . 19 . 196 109 227 75 103 18 . 176 . 366 437 441 410 4728 Projectiles 1278 | . . . . . 113 . . . . . . . . 14 8 11 . . . . . . 33 91 108 166 734 Explosions 4389 | . . . . . 188 . 11 . . . . . . 78 101 216 . 103 . . . . . 89 . 77 3526 Melee 2448 | . . . . . 134 131 233 . . . . 19 . 104 . . 75 . 18 . 176 . 333 257 333 167 468 Knockbacks 137 | . . 23 . . 15 . 1 . . . . . . 9 . . . . . . . . 1 6 1 1 80 Impact 5 | . . . . . 2 . 1 . . . . . . 1 . . . . . . . . 1 . . . . Kinetic 124 | . . 23 . . 12 . . . . . . . . 8 . . . . . . . . . 3 1 1 76 Secondary 8 | . . . . . 1 . . . . . . . . . . . . . . . . . . 3 . . 4 Self-Inflicted Damage 1697 | . . . . . 71 . . . . . . . . 41 77 154 . 7 . . . . . 71 . 29 1247 Shots 38 | . . . . . 2 . . . . . . . . 2 2 2 . 1 . . . . . 2 . 1 26 Rammed 1 | 1 . . . . . . . . . . . . . . . . . . . . . . . . . . . Targets Rammed 43 | 1 . . . . 12 . 8 1 . . . 5 . 2 2 4 . 2 . . . . 4 . 1 . 1 Kicked 42 | . . . . . 12 . 8 1 . . . 5 . 2 2 4 . 2 . . . . 4 . 1 . 1 Crushed . | . . . . . . . . . . . . . . . . . . . . . . . . . . . . Highest Temperature 356 | . 94 . . . 311 200 255 84 96 . 243 267 . 72 16 245 315 280 108 179 . 69 189 190 196 275 356 Average Temperature 80 | . 36 . . . 99 79 75 29 38 . 122 106 . 27 6 122 104 67 23 68 . 22 75 115 56 124 68 Received Heat Transfer 4685 | . 117 246 . . 279 . 513 . . . 27 364 . 465 239 576 234 151 54 84 . 222 128 258 . 12 716 Thermoelectric Energy+ 22 | . . . . . . . . . . . . . . . . . . . . . . . . . . . 22 Effects 5 | . . . . . . . . . . . 1 1 . . . . 3 . . . . . . . . . . Energy Bleed 1 | . . . . . . . . . . . 1 . . . . . . . . . . . . . . . . Interference 4 | . . . . . . . . . . . . 1 . . . . 3 . . . . . . . . . . Siege Activations . | . . . . . . . . . . . . . . . . . . . . . . . . . . . . Martial Activations . | . . . . . . . . . . . . . . . . . . . . . . . . . . . . Shielding Activations 5 | . . . . . . . . . . . . . . . . 1 1 . . . . . . . . . 3 Total Turns 146 | . . . . . . . . . . . . . . . . 32 38 . . . . . . . . . 76 Longest Duration 38 | . . . . . . . . . . . . . . . . 32 38 . . . . . . . . . 27 Robots Disrupted 6 | . . . . . 1 . . . . . . . . . . . . . . . . . . 1 . . 4 Combat Hostiles 5 | . . . . . . . . . . . . . . . . . . . . . . . . 1 . . 4 Robots Corrupted 24 | . . . . . 2 . . . . . . . . . 2 . . 2 . . . . 2 1 1 . 14 Combat Hostiles 22 | . . . . . 1 . . . . . . . . . 2 . . 2 . . . . 1 1 1 . 14 Parts Fried 52 | . . . . . 5 . 1 . . . . . . . 2 . . 3 . . . . 3 12 1 2 23 Impact Corruptions 4 | . . . . . 1 . . . . . . 1 . . . . . . . . . . 1 1 . . . Robots Melted 7 | . . . . . . . . . . . . . . . . . . . . . . . 1 . . . 6 Combat Hostiles 6 | . . . . . . . . . . . . . . . . . . . . . . . 1 . . . 5 Parts Melted 36 | . . . . . . . 6 . . . . . . 1 . 1 . . . . . . 9 1 . 3 15 Heat Transferred 15478 | . 50 . . . 725 851 4346 . . . . 200 . 550 100 850 100 300 . . . . 370 500 148 1184 5204 Parts Sabotaged 10 | . . . . . . . . . . . . . . . . . . . . . . . . . . . 10 Parts Stolen . | . . . . . . . . . . . . . . . . . . . . . . . . . . . . Parts Stripped 33 | . . . . . . . . . . . . . . . . . . . . . . . . . . 18 15 Power Chain Reactions 5 | . 1 . . . . . . . . . . . . . . . . . . . . . . 3 . . 1 Alert | -11 -10 -10 -9 -9 -6 -6 -6 -6 -6 -6 -5 -5 -5 -5 -5 -5 -5 -4 -4 -4 -4 -3 -3 -3 -2 -2 -2 ------- Run | Yrd Mat Sub Rec Scr Fac Was Fac Low Low Zio Pro Fac Was Fac Gar Fac Gar Fac Upp Upp Zhi Pro Res Tes Res Qua Frg Maximum Alert Level 5 | . . . . . 3 1 4 . . . . 1 . 3 4 4 4 3 . . . . . 1 1 2 5 Low Security (%) 31 | 100 100 . 100 . 45 64 12 . . . . 98 100 21 . . . . . . . . 100 55 41 54 . Level 1 20 | . . . . . 10 35 15 . . . . 1 . 41 . . . . . . . . . 44 58 33 20 Level 2 9 | . . . . . 16 . 26 . . . . . . 25 11 . . 13 . . . . . . . 12 9 Level 3 15 | . . . . . 26 . 40 . . . . . . 11 28 73 24 86 . . . . . . . . 6 Level 4 8 | . . . . . . . 3 . . . . . . . 60 26 75 . . . . . . . . . 8 Level 5 14 | . . . . . . . . . . . . . . . . . . . . . . . . . . . 54 High Security . | . . . . . . . . . . . . . . . . . . . . . . . . . . . . Max Security . | . . . . . . . . . . . . . . . . . . . . . . . . . . . . Peak Influence 9168 | 5 120 . 14 . 1060 361 1140 . . . . 243 82 864 1551 1541 1423 999 . . . . 147 335 335 495 9168 Initial 1046 | . . . 14 . . 361 . . . . . . 82 8 602 814 1046 746 . . . . . 72 78 2 259 Average 1195 | 1 62 . 1 . 403 155 611 . . . . 96 57 358 1151 987 1248 826 . . . . 56 164 186 163 3447 Influence Increases 23930 | 25 175 50 23 . 1690 5 1946 120 30 . 30 498 . 1381 1079 1199 507 533 391 245 15 417 629 1082 697 924 10239 Destroy 0b10 Robot/C 14200 | . 80 20 . . 680 . 1140 80 20 . 20 320 . 800 600 540 340 300 320 180 . 320 240 540 400 460 6800 Destroy 0b10 Robot/NC 875 | 25 . . 5 . 85 . 110 . . . . 5 . 40 . 85 10 25 10 . 15 15 55 60 25 45 260 Destroy Leader 2236 | . 20 . . . 192 . 228 10 10 . 10 32 . 140 40 132 40 42 10 20 . 20 58 64 82 56 1030 Allied During Kill 887 | . . . . . 2 . 339 . . . . . . . 34 54 5 . 21 45 . 47 71 178 30 61 . Trap Triggered on 0b10 20 | . . . . . . . . . . . . . . . . . 10 . . . . . 10 . . . . Successful Hack 264 | . 20 . 18 . 28 . 8 . . . . 16 . 13 14 . . 2 . . . . 38 . 40 29 38 Disable Machine 1710 | . 15 . . . 270 . 45 . . . . 45 . 75 45 165 . 60 . . . . 45 150 . 150 645 Anti-Garrison Action 400 | . . . . . 200 . . . . . . . . . 150 . 50 . . . . . . . . . . Destroy Structure 2438 | . 10 . . . 173 5 76 . . . . 20 . 178 121 148 37 44 . . . . 22 60 60 123 1361 Partial Spotted 15 | . . . . . . . . . . . . . . . . . . . . . . . . 15 . . . Lose Combat Pursuer 885 | . 30 30 . . 60 . . 30 . . . 60 . 135 75 75 15 60 30 . . 15 90 15 60 . 105 Influence Decreases 14762 | 25 121 74 53 . 657 1038 818 664 438 176 30 261 225 532 389 1255 579 1001 824 640 142 417 501 1069 833 467 1533 Entered New Map 4607 | . . 26 16 . . 672 . 418 112 176 . . 155 4 259 737 449 677 354 100 127 . . 56 63 3 203 Time Decay 7362 | 25 121 48 37 . 479 346 518 246 326 . 30 234 50 518 . 318 . 294 440 470 15 337 347 603 346 444 770 Lost Part 1392 | . . . . . 165 . 20 . . . . 27 20 10 70 100 110 30 30 10 . 40 70 100 50 . 540 Lost Ally 977 | . . . . . 13 20 280 . . . . . . . 60 100 20 . . 60 . 40 84 160 100 20 20 Purge Threat 424 | . . . . . . . . . . . . . . . . . . . . . . . . 150 274 . . Squads Dispatched 114 | . . . . . 18 . 20 . . . . 3 . 18 . 9 . 5 . . . . 2 9 6 6 18 Investigation 37 | . . . . . 8 . 9 . . . . 1 . 10 . 2 . 1 . . . . . 2 2 . 2 Extermination 33 | . . . . . 4 . 3 . . . . 1 . 5 . 1 . . . . . . 2 4 2 5 6 Reinforcement 26 | . . . . . 5 . 4 . . . . 1 . 3 . 2 . 1 . . . . . 3 2 1 4 Assault 15 | . . . . . 1 . 2 . . . . . . . . 3 . 3 . . . . . . . . 6 Garrison 3 | . . . . . . . 2 . . . . . . . . 1 . . . . . . . . . . . Intercept . | . . . . . . . . . . . . . . . . . . . . . . . . . . . . Searches Triggered . | . . . . . . . . . . . . . . . . . . . . . . . . . . . . Construction Impeded 9 | . . . . . 4 . 1 . . . . . . 2 . 1 . . . . . . . 1 . . . Haulers Reinforced 4 | . . . . . . . 3 . . . . . . . . . . . . . . . . . 1 . . Active Scanning Responses . | . . . . . . . . . . . . . . . . . . . . . . . . . . . . Cargo Convoy Interrupts 1 | . . . . . . . . . . . . . . 1 . . . . . . . . . . . . . Stealth | -11 -10 -10 -9 -9 -6 -6 -6 -6 -6 -6 -5 -5 -5 -5 -5 -5 -5 -4 -4 -4 -4 -3 -3 -3 -2 -2 -2 --------- Run | Yrd Mat Sub Rec Scr Fac Was Fac Low Low Zio Pro Fac Was Fac Gar Fac Gar Fac Upp Upp Zhi Pro Res Tes Res Qua Frg Distress Signals 28 | . . . . . 2 . 4 . . . . 2 . 1 . 3 . . . . . . 4 3 3 . 6 Communications Jammed 18 | . . . . . . . . . . . . . . 7 . . . 11 . . . . . . . . . Distress Signals 18 | . . . . . . . . . . . . . . 7 . . . 11 . . . . . . . . . Times Spotted 1010 | . 7 24 . . 47 1 55 6 1 . 2 24 5 50 28 42 18 31 18 10 . 18 34 36 32 31 490 Peak Tracking Total 15 | . 4 6 . . 5 1 5 4 1 . 1 7 5 5 8 10 7 12 5 4 . 5 9 7 8 5 15 Tactical Retreats 36 | . 1 1 . . 3 . . 1 . . . 1 . 4 2 5 1 2 1 . . 1 2 1 3 . 7 Traps | -11 -10 -10 -9 -9 -6 -6 -6 -6 -6 -6 -5 -5 -5 -5 -5 -5 -5 -4 -4 -4 -4 -3 -3 -3 -2 -2 -2 ------- Run | Yrd Mat Sub Rec Scr Fac Was Fac Low Low Zio Pro Fac Was Fac Gar Fac Gar Fac Upp Upp Zhi Pro Res Tes Res Qua Frg Traps Triggered 26 | . . 1 . . 6 . . . . . . 3 . . 1 . 2 . . . . . 1 . . . 12 Indirectly . | . . . . . . . . . . . . . . . . . . . . . . . . . . . . Trap Hack Attempts . | . . . . . . . . . . . . . . . . . . . . . . . . . . . . Triggered . | . . . . . . . . . . . . . . . . . . . . . . . . . . . . Disarmed 6 | . . . . . . . 1 . . . . 5 . . . . . . . . . . . . . . . Reprogrammed . | . . . . . . . . . . . . . . . . . . . . . . . . . . . . Reused 2 | . . . . . . . . . . . . . . . . . 1 . . . . . 1 . . . . Traps Extracted . | . . . . . . . . . . . . . . . . . . . . . . . . . . . . Installed 3 | . . . . . . . . . . . . . . . . . 1 . . . . . 1 1 . . . Triggered 2 | . . . . . . . . . . . . . . . . . 1 . . . . . 1 . . . . Most Traps Carried 4 | . . . . . . . . . . . 1 1 1 1 1 1 1 . 2 2 2 4 4 1 . . . Machines | -11 -10 -10 -9 -9 -6 -6 -6 -6 -6 -6 -5 -5 -5 -5 -5 -5 -5 -4 -4 -4 -4 -3 -3 -3 -2 -2 -2 ---------- Run | Yrd Mat Sub Rec Scr Fac Was Fac Low Low Zio Pro Fac Was Fac Gar Fac Gar Fac Upp Upp Zhi Pro Res Tes Res Qua Frg Machines Disabled 130 | . 1 1 . . 18 . 3 . . . . 3 . 5 6 11 1 4 1 1 1 . 3 10 . 10 51 Max in Single Turn 11 | . 1 1 . . 5 . 2 . . . . 1 . 2 1 4 1 4 1 1 1 . 1 1 . 1 11 Garrison Access 5 | . . . . . 2 . . . . . . . . . . . . . . . . . . 1 1 . 1 Garrison Relay 4 | . . . . . . . . . . . . . . . 3 . 1 . . . . . . . . . . Machines Repaired . | . . . . . . . . . . . . . . . . . . . . . . . . . . . . Machines Dismantled . | . . . . . . . . . . . . . . . . . . . . . . . . . . . . Machines Sabotaged . | . . . . . . . . . . . . . . . . . . . . . . . . . . . . Overloaded Fab Kills . | . . . . . . . . . . . . . . . . . . . . . . . . . . . . Hacking | -11 -10 -10 -9 -9 -6 -6 -6 -6 -6 -6 -5 -5 -5 -5 -5 -5 -5 -4 -4 -4 -4 -3 -3 -3 -2 -2 -2 --------- Run | Yrd Mat Sub Rec Scr Fac Was Fac Low Low Zio Pro Fac Was Fac Gar Fac Gar Fac Upp Upp Zhi Pro Res Tes Res Qua Frg Machines Accessed 109 | . 3 1 2 3 16 . 14 1 1 . . 4 . 15 1 4 2 3 . . 4 . 6 10 5 9 5 Terminals 39 | . 2 . 2 . 3 . 4 . . . . 2 . 1 1 1 2 1 . . . . 3 5 4 6 2 Fabricators 6 | . . . . . 1 . 1 . . . . 1 . 1 . . . . . . . . 1 1 . . . Repair Stations 11 | . 1 . . . 2 . 1 . . . . . . 3 . . . . . . . . 1 1 . 2 . Recycling Units 26 | . . . . . 7 . 7 . . . . . . 8 . 2 . 1 . . . . . . . . 1 Scanalyzers 10 | . . . . . 1 . 1 . . . . 1 . 1 . . . 1 . . . . 1 2 . 1 1 Garrison Access 7 | . . . . . 2 . . . . . . . . 1 . 1 . . . . . . . 1 1 . 1 Total Hacks 277 | . 6 1 7 28 36 . 29 1 1 . . 12 . 31 1 9 4 6 . . 17 . 16 18 16 24 14 Successful 146 | . 2 1 4 28 15 . 16 1 1 . . 7 . 16 1 3 1 3 . . 17 . 5 5 9 6 5 Failed 128 | . 4 . 3 . 21 . 12 . . . . 4 . 15 . 6 3 3 . . . . 11 13 7 17 9 Catastrophic 27 | . . . . . 4 . 2 . . . . . . 1 . 2 . 2 . . . . 3 5 2 4 2 Database Lockouts 3 | . . . . . . . 1 . . . . 1 . . . . . . . . . . . . . 1 . Manual 93 | . 3 . 3 . 22 . 16 . . . . 4 . 16 . 5 . 3 . . . . 3 1 8 6 3 Terminals 98 | . 4 . 7 . 9 . 11 . . . . 3 . 4 1 3 4 1 . . . . 8 9 14 12 8 Fabricators 13 | . . . . . 4 . 1 . . . . 2 . 2 . . . . . . . . 3 1 . . . Repair Stations 20 | . 2 . . . 4 . 2 . . . . . . 5 . . . . . . . . 1 2 . 4 . Recycling Units 49 | . . . . . 11 . 12 . . . . . . 16 . 4 . 3 . . . . . . . . 3 Scanalyzers 33 | . . . . . 3 . 3 . . . . 7 . 1 . . . 2 . . . . 4 4 . 8 1 Garrison Access 16 | . . . . . 5 . . . . . . . . 3 . 2 . . . . . . . 2 2 . 2 Terminal Hacks 72 | . 2 1 4 28 1 . 3 1 1 . . 1 . . 1 . 1 . . . 17 . 2 1 6 1 1 Record 26 | . . . . 21 . . . . . . . . . . . . . . . . 5 . . . . . . Part Schematic 6 | . . . 1 . . . 1 . . . . . . . . . . . . . 4 . . . . . . Robot Analysis 12 | . 1 . 1 6 . . . . . . . . . . . . . . . . 4 . . . . . . Prototype ID Bank 7 | . 1 . 2 . . . . . . . . . . . . . . . . . 4 . . . . . . Open Door 3 | . . . . . . . . 1 1 . . . . . . . 1 . . . . . . . . . . Level Access Points 1 | . . . . . . . . . . . . . . . . . . . . . . . . . 1 . . Branch Access Points 2 | . . . . . . . . . . . . . . . . . . . . . . . 1 . 1 . . Emergency Access Points 1 | . . . . . . . . . . . . . . . 1 . . . . . . . . . . . . Machine Index 1 | . . . . . . . . . . . . . . . . . . . . . . . . . 1 . . Unreport Threat 3 | . . . . . . . . . . . . . . . . . . . . . . . . 1 2 . . Locate Traps 4 | . . . . . 1 . 1 . . . . . . . . . . . . . . . . . 1 . 1 Disarm Traps 2 | . . . . . . . 1 . . . . 1 . . . . . . . . . . . . . . . Recall Extermination 1 | . . . . . . . . . . . . . . . . . . . . . . . 1 . . . . Zone Layout 1 | . . . . . . . . . . . . . . . . . . . . . . . . . . 1 . Proto ID Catalog 2 | . . 1 . 1 . . . . . . . . . . . . . . . . . . . . . . . Fabricator Hacks 2 | . . . . . . . . . . . . . . 1 . . . . . . . . 1 . . . . Network Status 2 | . . . . . . . . . . . . . . 1 . . . . . . . . 1 . . . . Repair Station Hacks 10 | . . . . . 3 . 2 . . . . . . 3 . . . . . . . . . 1 . 1 . Scan Component 7 | . . . . . 2 . 1 . . . . . . 2 . . . . . . . . . 1 . 1 . Repair 3 | . . . . . 1 . 1 . . . . . . 1 . . . . . . . . . . . . . Recycling Unit Hacks 4 | . . . . . . . 2 . . . . . . 2 . . . . . . . . . . . . . Retrieve Components 4 | . . . . . . . 2 . . . . . . 2 . . . . . . . . . . . . . Scanalyzer 16 | . . . . . 1 . 1 . . . . 5 . 1 . . . 2 . . . . 1 1 . 3 1 Insert Component 3 | . . . . . . . . . . . . 1 . . . . . . . . . . . 1 . 1 . Analyze 1 | . . . . . . . . . . . . 1 . . . . . . . . . . . . . . . Retrieve Study 12 | . . . . . 1 . 1 . . . . 3 . 1 . . . 2 . . . . 1 . . 2 1 Garrison Access Hacks 9 | . . . . . 1 . . . . . . . . 1 . 1 . . . . . . . 2 2 . 2 Unlock Access 2 | . . . . . . . . . . . . . . 1 . 1 . . . . . . . . . . . Seal Access 4 | . . . . . 1 . . . . . . . . . . . . . . . . . . 1 1 . 1 Coupler Status 3 | . . . . . . . . . . . . . . . . . . . . . . . . 1 1 . 1 Unauthorized Hacks 33 | . . . . . 9 . 8 . . . . 1 . 8 . 2 . 1 . . . . 1 . 1 1 1 Terminals 3 | . . . . . 1 . 1 . . . . . . . . . . . . . . . . . 1 . . Botnet 3 | . . . . . 1 . 1 . . . . . . . . . . . . . . . . . 1 . . Fabricators 3 | . . . . . . . . . . . . 1 . 1 . . . . . . . . 1 . . . . Haulers 3 | . . . . . . . . . . . . 1 . 1 . . . . . . . . 1 . . . . Repair Stations . | . . . . . . . . . . . . . . . . . . . . . . . . . . . . Recycling Units 24 | . . . . . 7 . 7 . . . . . . 6 . 2 . 1 . . . . . . . . 1 Fedlink 24 | . . . . . 7 . 7 . . . . . . 6 . 2 . 1 . . . . . . . . 1 Scanalyzers 1 | . . . . . . . . . . . . . . . . . . . . . . . . . . 1 . Researchers 1 | . . . . . . . . . . . . . . . . . . . . . . . . . . 1 . Garrison Access 2 | . . . . . 1 . . . . . . . . 1 . . . . . . . . . . . . . Reprogram 1 | . . . . . . . . . . . . . . 1 . . . . . . . . . . . . . Jam 1 | . . . . . 1 . . . . . . . . . . . . . . . . . . . . . . Data Cores Recovered 3 | . . . . . . . . . . . . . . . . . . . . . . . . . . 3 . Used . | . . . . . . . . . . . . . . . . . . . . . . . . . . . . Hacking Detections 77 | . 2 . 1 . 10 . 8 . . . . 4 . 10 1 3 2 3 . . . . 6 10 4 8 5 Full Trace Events 8 | . . . 1 . . . 2 . . . . . . 3 . . . . . . . . . 2 . . . Feedback Events . | . . . . . . . . . . . . . . . . . . . . . . . . . . . . Feedback Blocked . | . . . . . . . . . . . . . . . . . . . . . . . . . . . . Robot Schematics Acquired 1 | . . . . . . . . . . . . . . . . . . . . . . . . 1 . . . Robots Built . | . . . . . . . . . . . . . . . . . . . . . . . . . . . . Authchips . | . . . . . . . . . . . . . . . . . . . . . . . . . . . . Time . | . . . . . . . . . . . . . . . . . . . . . . . . . . . . Total Robot Build Rating . | . . . . . . . . . . . . . . . . . . . . . . . . . . . . Part Schematics Acquired 13 | . . . 1 . . . 1 . . . . 1 . . . . . . . . 4 . . 4 . . 2 Parts Built . | . . . . . . . . . . . . . . . . . . . . . . . . . . . . Authchips . | . . . . . . . . . . . . . . . . . . . . . . . . . . . . Time . | . . . . . . . . . . . . . . . . . . . . . . . . . . . . Total Part Build Rating . | . . . . . . . . . . . . . . . . . . . . . . . . . . . . Part Studies Acquired 12 | . . . . . 1 . 1 . . . . 3 . 1 . . . 2 . . . . 1 . . 2 1 Parts Repaired 3 | . . . . . 1 . 1 . . . . . . 1 . . . . . . . . . . . . . Time 162 | . . . . . 44 . 44 . . . . . . 74 . . . . . . . . . . . . . Parts Recycled . | . . . . . . . . . . . . . . . . . . . . . . . . . . . . Recycled Matter . | . . . . . . . . . . . . . . . . . . . . . . . . . . . . Retrieved Matter . | . . . . . . . . . . . . . . . . . . . . . . . . . . . . Retrieved Components 19 | . . . . . . . 4 . . . . . . 15 . . . . . . . . . . . . . Parts Scanalyzed 1 | . . . . . . . . . . . . 1 . . . . . . . . . . . . . . . Part Schematics Acquired 1 | . . . . . . . . . . . . 1 . . . . . . . . . . . . . . . Parts Damaged . | . . . . . . . . . . . . . . . . . . . . . . . . . . . . Bothacking | -11 -10 -10 -9 -9 -6 -6 -6 -6 -6 -6 -5 -5 -5 -5 -5 -5 -5 -4 -4 -4 -4 -3 -3 -3 -2 -2 -2 ------------ Run | Yrd Mat Sub Rec Scr Fac Was Fac Low Low Zio Pro Fac Was Fac Gar Fac Gar Fac Upp Upp Zhi Pro Res Tes Res Qua Frg Used RIF Installer 1 | . . . . . . . . . . . . . . . 1 . . . . . . . . . . . . Robots Hacked 36 | . . . . . . . . . . 1 . 1 . 1 . 2 . . 1 . 3 . 14 8 3 2 . Non-combat 6 | . . . . . . . . . . . . 1 . 1 . . . . . . . . 4 . . . . Combat 30 | . . . . . . . . . . 1 . . . . . 2 . . 1 . 3 . 10 8 3 2 . Robot Hacks Applied 36 | . . . . . . . . . . 1 . 1 . 1 . 2 . . 1 . 3 . 14 8 3 2 . parse_system 4 | . . . . . . . . . . 1 . . . . . . . . . . 3 . . . . . . find_chute 1 | . . . . . . . . . . . . 1 . . . . . . . . . . . . . . . ignore_repairs 4 | . . . . . . . . . . . . . . . . . . . . . . . 4 . . . . find_recycling 1 | . . . . . . . . . . . . . . 1 . . . . . . . . . . . . . spike_heat 2 | . . . . . . . . . . . . . . . . . . . . . . . 2 . . . . overwrite_iff 7 | . . . . . . . . . . . . . . . . 1 . . . . . . 4 . 2 . . streamctrl_high 9 | . . . . . . . . . . . . . . . . . . . . . . . . 7 . 2 . formatsys_high 8 | . . . . . . . . . . . . . . . . 1 . . 1 . . . 4 1 1 . . Relay Couplers Released 26 | . . . . . . . . . . . . . . . 14 . 3 . . . . . 4 1 1 . 3 Machine Destruction 22 | . . . . . . . . . . . . . . . 14 . 3 . . . . . . 1 1 . 3 Programmers 4 | . . . . . . . . . . . . . . . . . . . . . . . 4 . . . . Attached 7 | . . . . . . . . . . . . . . . 2 . . . 1 . . . 3 1 . . . Fabnet Peak Effective % . | . . . . . . . . . . . . . . . . . . . . . . . . . . . . Robots Rewired 16 | . . . 7 . 1 . . . . . . . . . 3 . . . 2 3 . . . . . . . Allies Hacked 12 | . . . . . . . . . . . . . . . . 1 1 . . . . . 5 3 2 . . Hacks Repelled 2 | . . . . . . . . . . . . . . . . . . . . . . . 1 1 . . . Allies | -11 -10 -10 -9 -9 -6 -6 -6 -6 -6 -6 -5 -5 -5 -5 -5 -5 -5 -4 -4 -4 -4 -3 -3 -3 -2 -2 -2 -------- Run | Yrd Mat Sub Rec Scr Fac Was Fac Low Low Zio Pro Fac Was Fac Gar Fac Gar Fac Upp Upp Zhi Pro Res Tes Res Qua Frg Total Allies 73 | . . . 7 1 1 20 . . . . . . . 3 3 2 1 . 3 3 . . 12 10 5 2 . Largest Group 20 | . . . 7 8 6 20 18 . . . . . . 3 3 3 1 . 3 3 3 3 7 6 4 2 1 Highest-Rated Group 737 | . . . 64 126 49 737 649 . . . . . . 87 147 147 51 . 211 211 210 210 452 492 320 164 77 Highest-Rated Ally 116 | . . . 18 62 21 50 46 . . . . . . 29 49 49 51 . 116 116 116 116 116 82 82 82 77 Initial UFD Resources 108 | . . . . . 23 47 47 61 61 61 64 64 64 64 86 86 90 94 104 104 104 106 106 106 108 108 108 Total Orders 15 | . . . . 3 . . . . . . . . . . . . . . 2 2 2 . . 4 . 2 . STAY 8 | . . . . 2 . . . . . . . . . . . . . . 1 1 1 . . 2 . 1 . FOLLOW 7 | . . . . 1 . . . . . . . . . . . . . . 1 1 1 . . 2 . 1 . Ally Attacks 548 | . . . . . 28 15 153 . . . . . . . 38 40 7 . 4 28 . 38 23 105 27 42 . Total Damage 14316 | . . . . . 164 499 3671 . . . . . . . 571 1394 147 . 250 1141 . 1657 776 2673 1107 266 . Kills 86 | . . . . . 1 1 22 . . . . . . . 5 11 1 . . 8 . 7 6 16 6 2 . Allies Corrupted 5 | . . . . . . . 1 . . . . . . . . 1 1 . . . . . 1 . 1 . . Allies Melted 5 | . . . . . . . 1 . . . . . . . . . . . . . . . . . . . 4 Intel | -11 -10 -10 -9 -9 -6 -6 -6 -6 -6 -6 -5 -5 -5 -5 -5 -5 -5 -4 -4 -4 -4 -3 -3 -3 -2 -2 -2 ------- Run | Yrd Mat Sub Rec Scr Fac Was Fac Low Low Zio Pro Fac Was Fac Gar Fac Gar Fac Upp Upp Zhi Pro Res Tes Res Qua Frg Active Infowar (turns) 18871 | . . 214 . . 201 848 169 298 703 745 1307 652 72 953 21 99 . 645 1087 1194 167 767 1080 1430 832 1618 3769 Optics 5211 | . . 116 . . . . . . . . . . . . . . . . . . . . . 390 832 1618 2255 Sensors 11259 | . . . . . . . . 298 703 655 1307 630 72 707 . 98 . 518 366 894 69 749 738 1202 189 1053 1011 Structural 943 | . . . . . . . 113 . . . . 22 . 91 . 1 . . 21 118 . 18 43 104 52 189 171 Seismic 1203 | . . 98 . . 201 848 56 . . . . . . . . . . . . . . . . . . . . Decoding 1326 | . . . . . . . . . . . . . . . . . . . . . . . 1080 246 . . . Cloaking 1014 | . . . . . . . . . . . . . . . . . . . . . . . . . . . 1014 Jamming 3537 | . . . . . . 182 . . . 90 . . . 155 21 . . 641 1087 1194 167 . . . . . . Robot Analysis Total 12 | . 1 . 1 6 . . . . . . . . . . . . . . . . 4 . . . . . . Derelict Logs Recovered 11 | . . 2 . 4 . . . . 1 . 2 . . . . . . . 1 1 . . . . . . . Drone Launches . | . . . . . . . . . . . . . . . . . . . . . . . . . . . . Drone Recoveries . | . . . . . . . . . . . . . . . . . . . . . . . . . . . . Decoded 0b10 Intel 39 | . . . . . . . . . . . . . . . . . . . . . . . 31 8 . . . Traps 4 | . . . . . . . . . . . . . . . . . . . . . . . 3 1 . . . Items 26 | . . . . . . . . . . . . . . . . . . . . . . . 24 2 . . . Machines 8 | . . . . . . . . . . . . . . . . . . . . . . . 4 4 . . . Patrols 1 | . . . . . . . . . . . . . . . . . . . . . . . . 1 . . . Exploration | -11 -10 -10 -9 -9 -6 -6 -6 -6 -6 -6 -5 -5 -5 -5 -5 -5 -5 -4 -4 -4 -4 -3 -3 -3 -2 -2 -2 ------------- Run | Yrd Mat Sub Rec Scr Fac Was Fac Low Low Zio Pro Fac Was Fac Gar Fac Gar Fac Upp Upp Zhi Pro Res Tes Res Qua Frg Turns Passed 37057 | 185 289 2319 340 4580 1976 848 1904 538 731 1295 1409 822 100 1805 924 703 775 645 1087 1194 226 1005 1080 1965 832 1618 5862 Spaces Moved 22435 | 91 131 1738 212 2236 1312 475 1125 426 666 938 695 534 79 961 597 388 441 417 769 882 164 697 683 1428 460 951 2939 Core 388 | 4 . . . 108 . . . . . . . . . . . . . . . . . . . . . . 276 Treads 2406 | 87 131 175 . 2013 . . . . . . . . . . . . . . . . . . . . . . . Legs 17159 | . . . . . 1312 475 1125 426 666 938 695 534 79 961 597 388 441 417 769 882 164 697 683 1428 460 951 2071 Wheels 1890 | . . 1563 212 115 . . . . . . . . . . . . . . . . . . . . . . . Hover . | . . . . . . . . . . . . . . . . . . . . . . . . . . . . Flight 592 | . . . . . . . . . . . . . . . . . . . . . . . . . . . 592 Fastest Speed 39 | 50 160 100 110 50 90 100 105 105 105 105 105 105 105 105 107 107 106 109 105 105 105 105 107 96 96 107 39 Average Speed 122 | 155 160 110 127 192 105 135 123 113 105 116 173 105 109 122 110 109 112 112 107 105 105 110 109 101 103 116 117 Slowest Speed 385 | 160 160 160 130 320 180 245 175 175 105 175 175 105 175 175 178 113 183 118 109 179 110 179 185 110 169 174 385 Overloaded Moves . | . . . . . . . . . . . . . . . . . . . . . . . . . . . . Propulsion Burnouts . | . . . . . . . . . . . . . . . . . . . . . . . . . . . . Robots Hopped 3 | . . . . . . . . . . . . . . . . . . . . . . . . . . . 3 Potential Cave-ins 36 | . . . . . . . . . . . . 2 . . . . . . . . . . . . . . 34 Cave-ins Triggered 1 | . . . . . . . . . . . . . . . . . . . . . . . . . . . 1 Exploration Rate (%) 57 | 4 21 95 42 83 41 96 34 60 88 85 88 16 68 32 69 12 34 10 92 92 60 81 25 95 20 94 75 Regions Visited 27 Branch Regions 14 Pre-discovered Areas 15 | . . 2 . 6 1 . . . . 1 1 . . . . . . . 1 . 3 . . . . . . Known Exits Taken 17 | . . . . 1 . . 1 1 1 1 1 . . 1 . 1 . 1 1 1 1 1 1 1 1 1 . Unknown Exits Taken 4 | 1 1 1 1 . . . . . . . . . . . . . . . . . . . . . . . . Scrap Searched 40 | . . 8 . 9 . . . 6 4 3 2 . . . . . . . 3 2 . 3 . . . . . Spaces Dug 268 | . . 3 . . 26 . 4 28 1 . 1 7 . 16 18 7 6 . 2 11 . . 7 13 12 9 97 Terrain Destroyed 1748 | . 9 3 . . 187 . 90 39 2 . 1 11 . 85 48 63 8 20 13 11 . 1 10 27 16 53 1051 Melee 73 | . . 3 . . 2 . 4 1 . . 1 2 . 10 . . 6 . 1 10 . . 7 12 5 4 5 Projectile 339 | . . . . . 16 . 2 1 2 . . 9 . 11 2 11 2 2 11 1 . 1 3 6 11 21 227 AOE 1286 | . 9 . . . 169 . 84 37 . . . . . 64 46 51 . 18 . . . . . 9 . 28 771 Terrain Rammed . | . . . . . . . . . . . . . . . . . . . . . . . . . . . . Walls Destroyed . | . . . . . . . . . . . . . . . . . . . . . . . . . . . . Machines Disabled . | . . . . . . . . . . . . . . . . . . . . . . . . . . . . Actions | -11 -10 -10 -9 -9 -6 -6 -6 -6 -6 -6 -5 -5 -5 -5 -5 -5 -5 -4 -4 -4 -4 -3 -3 -3 -2 -2 -2 --------- Run | Yrd Mat Sub Rec Scr Fac Was Fac Low Low Zio Pro Fac Was Fac Gar Fac Gar Fac Upp Upp Zhi Pro Res Tes Res Qua Frg Total 29079 | 117 176 1978 279 2526 1724 644 1455 464 691 1139 872 709 92 1374 775 567 598 536 936 1084 201 857 927 1831 727 1297 4503 Wait 2986 | 4 6 100 25 186 180 104 165 4 8 171 126 82 8 217 64 81 46 46 66 126 . 99 78 209 98 136 551 Move 22404 | 90 130 1737 211 2235 1312 474 1124 425 665 937 694 534 78 960 596 388 440 416 768 881 163 696 682 1427 459 950 2932 Hop 3 | . . . . . . . . . . . . . . . . . . . . . . . . . . . 3 Pick Up 310 | 7 6 11 . 44 23 4 12 1 3 8 3 8 1 10 6 3 11 9 5 . 6 5 14 16 17 14 63 Fast Attach 269 | 6 2 5 1 6 28 6 6 4 . 1 9 3 1 10 11 10 8 7 11 1 5 1 12 18 9 14 74 Attach 182 | . . 5 . 2 12 1 2 1 . . . 6 . 2 2 4 13 5 6 . 1 5 11 7 14 8 75 Detach 113 | . . 1 . 2 3 3 2 3 . . 2 1 . 1 3 1 4 6 5 . 1 1 6 12 10 4 42 Swap 540 | . 5 14 4 5 22 10 25 15 7 11 9 20 2 48 8 12 7 6 14 18 4 11 26 28 31 26 152 Drop 369 | . 7 13 2 45 17 11 20 3 4 10 13 8 2 13 8 10 6 7 7 4 8 2 16 25 14 27 67 Fire 1409 | 9 20 70 . 1 97 24 76 6 4 . 4 39 . 93 60 54 44 32 42 14 3 37 37 44 54 69 476 Melee 321 | . . 22 1 . 6 7 15 1 . 1 11 3 . 18 . . 15 . 4 23 10 . 36 43 19 49 37 Ram . | . . . . . . . . . . . . . . . . . . . . . . . . . . . . Kick 42 | . . . . . 12 . 8 1 . . . 5 . 2 2 4 . 2 . . . . 4 . 1 . 1 Crush 1 | 1 . . . . . . . . . . . . . . . . . . . . . . . . . . . Escape Stasis 35 | . . . . . 3 . . . . . . . . . . . 2 . . . . . . . . . 30 Rewire 91 | . . . 35 . 9 . . . . . . . . . 15 . 1 . 8 17 . . 4 1 1 . . Trap 3 | . . . . . . . . . . . . . . . . . 1 . . . . . 1 1 . . . Miscellaneous 1 | . . . . . . . . . . . 1 . . . . . . . . . . . . . . . . Route ------- -11/Scrapyard -10/Materials -10/Subcaves (discovered 4 exits: [*Mat x2] / *Rec / *Scr) -9/Recycling -9/Scraptown (discovered 2 exits: *Fac x2) -6/Factory (discovered 6 exits: *Fac x4 / *Low x2) -6/Waste -6/Factory (discovered 2 exits: *Fac / *Low) -6/Lower Caves -6/Lower Caves -6/Zion -5/Proximity Caves -5/Factory (discovered 2 exits: *Upp x2) -5/Waste -5/Factory (discovered 2 exits: Upp / Gar) -5/Garrison (discovered 2 exits: *Fac x2) -5/Factory -5/Garrison -4/Factory (discovered 2 exits: *Upp / Ext) -4/Upper Caves -4/Upper Caves (discovered 2 exits: *Res / *Zhi) -4/Zhirov -3/Proximity Caves -3/Research (discovered 3 exits: Arm / *Tes x2) -3/Testing -2/Research (discovered 5 exits: Acc x3 / *Qua x2) -2/Quarantine (discovered 3 exits: *Acc / [*Sec] / *Frg) -2/Protoforge 0bPrime History --------- Turn | Location | Event 57 | -11/Scrapyard | Discovered new exit (range 15) 186 | -11/Scrapyard | Entered Materials 309 | -10/Materials | Build established: Mutant 462 | -10/Materials | Discovered new exit (range 8) 475 | -10/Materials | Entered Subcaves 476 | -10/Subcaves | Approached by a straggling Scientist 495 | -10/Subcaves | Discovered new exit (range 16) 597 | -10/Subcaves | Learned location of 1 exit from Materials 613 | -10/Subcaves | Learned location of Storage (-9) 714 | -10/Subcaves | Learned location of Zion (-6) 714 | -10/Subcaves | Met a Zionite searching for "candidates" 803 | -10/Subcaves | Discovered new exit (range 13) 807 | -10/Subcaves | Ambushed by Subdwellers from Twisted Machinery 845 | -10/Subcaves | Shifting Twisted Machinery released Sub. Monowheel 848 | -10/Subcaves | Shifting Twisted Machinery released Humpback 1054 | -10/Subcaves | A swath of the cavern ceiling suddenly collapsed 1335 | -10/Subcaves | Core integrity fell below 50% 1890 | -10/Subcaves | Disturbed a concealed Subdweller 2088 | -10/Subcaves | Visited 4L-MR0's lab 2098 | -10/Subcaves | Found Arachnoskeleton 2264 | -10/Subcaves | Core integrity fell below 20% 2296 | -10/Subcaves | Shifting Twisted Machinery released Sub. Optics 2323 | -10/Subcaves | Shifting Twisted Machinery released Sub. Monowheel 2429 | -10/Subcaves | Shifting Twisted Machinery released Sub. Beam Cannon 2435 | -10/Subcaves | Shifting Twisted Machinery released Sub. Power Source 2697 | -10/Subcaves | Build established: Derelict-Mutant 2790 | -10/Subcaves | Discovered new exit (range 3) 2794 | -10/Subcaves | Entered Recycling 3076 | -9/Recycling | Scanned before Scraplab entrance 3095 | -9/Recycling | Entered Scraplab 3129 | -9/Recycling | Discovered new exit (range 3) 3134 | -9/Recycling | Entered Scraptown 3134 | -9/Scraptown | Accompanied by 7 allies 3154 | -9/Scraptown | Build established: Commander-Mutant 3663 | -9/Scraptown | Discovered new exit (range 11) 3805 | -9/Scraptown | Scanned Subdweller tech in exchange for log data 3811 | -9/Scraptown | Learned Research security intel 3815 | -9/Scraptown | Learned location of Armory (-3) 3818 | -9/Scraptown | Learned Factory garrison access intel 3831 | -9/Scraptown | Learned Research emergency access door positions 3933 | -9/Scraptown | Visited The Evicted 3962 | -9/Scraptown | Visited Bundlers 4289 | -9/Scraptown | Visited Spacefarers 4372 | -9/Scraptown | Visited Comm Corps 4471 | -9/Scraptown | Visited SPCMW 4522 | -9/Scraptown | Visited UFD Registry 4522 | -9/Scraptown | Registered with UFD as "Gammafunk" 4634 | -9/Scraptown | Visited Infowarlord's Domain 4698 | -9/Scraptown | Visited Science Guys 4807 | -9/Scraptown | Visited Junk Repository 4935 | -9/Scraptown | Visited Cartography Club 4957 | -9/Scraptown | Visited Analyses Database 5007 | -9/Scraptown | Visited Derelict Rescue Squad 5022 | -9/Scraptown | Found DRS Beacon 5064 | -9/Scraptown | Visited Junk Repository 5261 | -9/Scraptown | Visited Chapter 10 5288 | -9/Scraptown | Visited Botcube Research 5313 | -9/Scraptown | Visited Observation Area 5739 | -9/Scraptown | Found Botcube 6317 | -9/Scraptown | Botcube activated 6341 | -9/Scraptown | Botcube completed mutation into legged form, armed with 2 cannons. 7041 | -9/Scraptown | Attached CPS modules to *DU-NN0. 7143 | -9/Scraptown | Found Surveybot 17 Chip 7270 | -9/Scraptown | Learned location of Lower Caves (-7) 7270 | -9/Scraptown | Learned location of Upper Caves (-4) 7270 | -9/Scraptown | Learned location of Warlord (-5) 7270 | -9/Scraptown | Learned location of Hub_04(d) (-4) 7270 | -9/Scraptown | Learned 12 Factory zone layouts 7270 | -9/Scraptown | Learned 20 Factory zone layouts 7270 | -9/Scraptown | Learned 12 Research zone layouts 7270 | -9/Scraptown | Learned 4 Access zone layouts 7270 | -9/Scraptown | Learned 4 Mines zone layouts 7270 | -9/Scraptown | Learned 20 Lower Caves zone layouts 7270 | -9/Scraptown | Learned 12 Upper Caves zone layouts 7270 | -9/Scraptown | Learned 12 Proximity Caves zone layouts 7270 | -9/Scraptown | Learned Storage emergency access door positions 7270 | -9/Scraptown | Learned location of 3 exits from Factory 7270 | -9/Scraptown | Learned location of 1 exit from Lower Caves 7270 | -9/Scraptown | Learned location of 3 exits from Upper Caves 7270 | -9/Scraptown | Identified exit to Factory 7282 | -9/Scraptown | Found Deep Structural Scanner 7445 | -9/Scraptown | Found Exp. Signal Interpreter 7609 | -9/Scraptown | Met Optimus 7609 | -9/Scraptown | Accepted into 0bPrime 7714 | -9/Scraptown | Entered Factory 7714 | -6/Factory | Accompanied by 6 allies 7714 | -6/Factory | Evolved 8 slots: Power x1, Propulsion x2, Utility x4, Weapon x1 7715 | -6/Factory | Identified exit to Factory 7716 | -6/Factory | Identified exit to Lower Caves 7716 | -6/Factory | Attached Arachnoskeleton, gained temporary slots: Propulsion x3 7718 | -6/Factory | Loaded intel: 4 garrison access locations 7870 | -6/Factory | Lost 4 allies 7933 | -6/Factory | Repaired Imp. Deuterium Engine 8175 | -6/Factory | Build established: Gunner 8273 | -6/Factory | Loaded intel: 7 recycling unit locations 8343 | -6/Factory | Found Prototype Processor 8343 | -6/Factory | Identified Exp. Targeting Computer 8613 | -6/Factory | Lost 8 parts (2p1n3u2w) 8684 | -6/Factory | Learned location of Protoforge (-2) 9292 | -6/Factory | Build established: Tank 9424 | -6/Factory | Found Launcher Loader 9464 | -6/Factory | First assault squad dispatched 9690 | -6/Factory | Sucked down chute 9690 | -6/Factory | Entered Waste 9691 | -6/Waste | Joined by Warlord forces that had cleared the area 9756 | -6/Waste | Build established: Mutant 9870 | -6/Waste | A Compactor rumbled back to life 9870 | -6/Waste | Spotted C-40 Crusher 9873 | -6/Waste | Allies destroyed C-40 Crusher 10193 | -6/Waste | Discovered new exit (range 16) 10538 | -6/Waste | Entered Factory 10538 | -6/Factory | Accompanied by 18 allies 10689 | -6/Factory | Loaded intel: 8 recycling unit locations 10810 | -6/Factory | Lost 5 allies 10936 | -6/Factory | Lost 8 allies 11237 | -6/Factory | Build established: Scavenger-Gunner 11238 | -6/Factory | First assault squad dispatched 11446 | -6/Factory | Repaired Imp. Cooling System? 11579 | -6/Factory | Discovered exit to Factory (range 10) 11988 | -6/Factory | Central database locked down 12170 | -6/Factory | Discovered exit to Lower Caves (range 4) 12283 | -6/Factory | Garrison activated, responded to threat 12442 | -6/Factory | Entered Lower Caves 12443 | -6/Lower Caves | Identified exit to Lower Caves 12980 | -6/Lower Caves | Entered another Lower Caves area 13104 | -6/Lower Caves | Identified exit to Zion 13711 | -6/Lower Caves | Entered Zion 13800 | -6/Zion | Discovered new exit (range 15) 13997 | -6/Zion | Received a hallucinogenic algorithm 14184 | -6/Zion | Turned away by Imprinter 14373 | -6/Zion | Found Prototype Launcher 14439 | -6/Zion | Identified Gui. Missile Launcher 14484 | -6/Zion | Build established: Scavenger-Mutant 14649 | -6/Zion | Visited the Megawrench Repair Shop 14649 | -6/Zion | Megawrench repaired 12 parts 14927 | -6/Zion | Found Relay Coupler [Programmer] 14935 | -6/Zion | Found Relay Coupler [Programmer] 14944 | -6/Zion | Build established: Scavenger-Gunner 15004 | -6/Zion | Identified exit to Proximity Caves 15006 | -6/Zion | Entered Proximity Caves 15203 | -5/Proximity Caves | Activated DRS Beacon 15860 | -5/Proximity Caves | Spotted B-75 Beast 16415 | -5/Proximity Caves | Entered Factory 16415 | -5/Factory | Evolved 2 slots: Propulsion x2 16416 | -5/Factory | Identified exit to Upper Caves 16613 | -5/Factory | Central database locked down 17237 | -5/Factory | Sucked down chute 17237 | -5/Factory | Entered Waste 17249 | -5/Waste | Spotted C-40 Crusher 17252 | -5/Waste | EMP discharged 17256 | -5/Waste | Spotted C-40 Crusher 17262 | -5/Waste | Spotted C-40 Crusher 17263 | -5/Waste | Spotted C-40 Crusher 17297 | -5/Waste | Spotted C-40 Crusher 17313 | -5/Waste | Crushed by Compactor (1 part destroyed, 1 dropped) 17320 | -5/Waste | Discovered new exit (range 16) 17324 | -5/Waste | Crushed by Compactor (1 part destroyed, 1 dropped) 17336 | -5/Waste | Identified exit to Factory 17337 | -5/Waste | Entered Factory 17484 | -5/Factory | Loaded intel: 8 recycling unit locations 17988 | -5/Factory | Build established: Scavenger-Mutant 18112 | -5/Factory | Repaired Hvy. Shield Leg 18941 | -5/Factory | Build established: Scientist-Gunner 19099 | -5/Factory | Cargo convoy interrupted 19123 | -5/Factory | Identified exit to Garrison 19142 | -5/Factory | Entered Garrison 19142 | -5/Garrison | Accompanied by 3 allies 19185 | -5/Garrison | Triggered checkpoint 19248 | -5/Garrison | Garrison Relay disabled 19309 | -5/Garrison | Spotted B-75 Beast 19316 | -5/Garrison | Triggered checkpoint 19316 | -5/Garrison | Triggered checkpoint 19341 | -5/Garrison | Destroyed B-75 Beast 19365 | -5/Garrison | Destroyed 10 combat bots 19370 | -5/Garrison | Lost 4 parts (1n3w) 19562 | -5/Garrison | Destroyed 7 combat bots 19643 | -5/Garrison | Installed Relay Interface Framework 19657 | -5/Garrison | Build established: Scavenger-Gunner 19667 | -5/Garrison | Discovered new exit (range 12) 19684 | -5/Garrison | Triggered checkpoint 19746 | -5/Garrison | Garrison Relay disabled 19878 | -5/Garrison | Discovered new exit (range 10) 19937 | -5/Garrison | Triggered checkpoint 19953 | -5/Garrison | Garrison Relay disabled 19962 | -5/Garrison | Triggered checkpoint 20045 | -5/Garrison | Identified exit to Factory 20066 | -5/Garrison | Entered Factory 20066 | -5/Factory | Accompanied by 3 allies 20161 | -5/Factory | Loaded intel: 8 recycling unit locations 20366 | -5/Factory | First assault squad dispatched 20420 | -5/Factory | Lost 4 allies 20583 | -5/Factory | Core integrity fell below 50% 20619 | -5/Factory | Lost 4 parts (3n1w) 20726 | -5/Factory | Garrison activated, responded to threat 20741 | -5/Factory | Lost 3 parts (1n2u) 20747 | -5/Factory | Destroyed 9 combat bots 20769 | -5/Factory | Identified exit to Garrison 20769 | -5/Factory | Entered Garrison 20771 | -5/Garrison | Triggered checkpoint 20788 | -5/Garrison | Lost 3 parts (1p1n1w) 21181 | -5/Garrison | Rescued a captive Derelict 21193 | -5/Garrison | Garrison Relay disabled 21350 | -5/Garrison | Core integrity fell below 20% 21429 | -5/Garrison | Lost 9 parts (3n3u3w) 21438 | -5/Garrison | System corruption reached 10% 21445 | -5/Garrison | System corruption reached 30% 21455 | -5/Garrison | Triggered checkpoint 21507 | -5/Garrison | Discovered new exit (range 12) 21518 | -5/Garrison | Identified exit to Factory 21544 | -5/Garrison | Entered Factory 21544 | -4/Factory | Evolved 2 slots: Utility x2 21545 | -4/Factory | Identified exit to Extension 21794 | -4/Factory | First assault squad dispatched 21839 | -4/Factory | Loaded intel: 8 recycling unit locations 21905 | -4/Factory | Discovered new exit (range 13) 21974 | -4/Factory | Identified exit to Upper Caves 21989 | -4/Factory | Found Prototype Processor 21989 | -4/Factory | Identified Exp. Melee Analysis Suite 22189 | -4/Factory | Entered Upper Caves 22190 | -4/Upper Caves | Identified exit to Upper Caves 22205 | -4/Upper Caves | Spotted B-86 Titan 22225 | -4/Upper Caves | Assimilated Titan 7a with formatsys_high 22351 | -4/Upper Caves | Learned location of Testing (-3) 22487 | -4/Upper Caves | Attracted the attention of an 0b10 checkpoint 22844 | -4/Upper Caves | Attracted the attention of an 0b10 outpost 23230 | -4/Upper Caves | Found Alien Artifact 23230 | -4/Upper Caves | Identified Core Expander 23230 | -4/Upper Caves | Installed Core Expander, added new Power slot 23276 | -4/Upper Caves | Entered another Upper Caves area 23276 | -4/Upper Caves | Accompanied by 3 allies 23277 | -4/Upper Caves | Identified exit to Zhirov 23277 | -4/Upper Caves | Identified exit to Research 23321 | -4/Upper Caves | Attracted the attention of an 0b10 checkpoint 23566 | -4/Upper Caves | Attacked by a delusional Derelict stockpiling Unaware 23821 | -4/Upper Caves | Learned Research garrison access intel 24243 | -4/Upper Caves | Build established: Scavenger-Mutant 24470 | -4/Upper Caves | Entered Zhirov 24470 | -4/Zhirov | Accompanied by 3 allies 24470 | -4/Zhirov | Discovered new exit (range 3) 24489 | -4/Zhirov | Met Zhirov 24518 | -4/Zhirov | Learned location of Quarantine (-2) 24518 | -4/Zhirov | Learned location of Command (-1) 24524 | -4/Zhirov | Zhirov requested help retrieving the SGEMP Prototype 24540 | -4/Zhirov | Found Alien Artifact 24540 | -4/Zhirov | Identified Integrated Dissipator 24540 | -4/Zhirov | Installed Integrated Dissipator, increased core heat dissipation (+20) 24650 | -4/Zhirov | Found Alien Artifact 24695 | -4/Zhirov | Identified exit to Proximity Caves 24696 | -4/Zhirov | Entered Proximity Caves 24696 | -3/Proximity Caves | Accompanied by 3 allies 24925 | -3/Proximity Caves | Build established: Scavenger-Gunner 25058 | -3/Proximity Caves | Attracted the attention of an 0b10 checkpoint 25375 | -3/Proximity Caves | Discovered exit to Research (range 5) 25701 | -3/Proximity Caves | Entered Research 25701 | -3/Research | Accompanied by 1 ally 25701 | -3/Research | Evolved 2 slots: Utility x1, Weapon x1 25702 | -3/Research | Identified exit to Armory 25706 | -3/Research | Loaded intel: 4 garrison access locations 25810 | -3/Research | Identified exit to Testing 26256 | -3/Research | Lost 5 parts (1n1u3w) 26322 | -3/Research | System corruption reached 10% 26534 | -3/Research | Master 8a assimilated hostile G-67 Veteran 26592 | -3/Research | Master 8b assimilated hostile H-77 Assassin 26681 | -3/Research | Master 8b assimilated hostile Y-72 Warden 26781 | -3/Research | Entered Testing 26781 | -3/Testing | Accompanied by 6 allies 26965 | -3/Testing | Lost 6 allies 27014 | -3/Testing | Lost 9 parts (3p1u5w) 27020 | -3/Testing | Destroyed 12 combat bots 27031 | -3/Testing | Found Spectral Analyzer 27269 | -3/Testing | Master 8d assimilated hostile W-44 Eye 27342 | -3/Testing | Master 8f assimilated hostile G-67 Veteran 27446 | -3/Testing | Discovered new exit (range 16) 27549 | -3/Testing | Found Prototype Ballistic Cannon 27549 | -3/Testing | Identified Perforator 27582 | -3/Testing | Found Prototype Hackware 27650 | -3/Testing | Identified Ghost Barrier 27710 | -3/Testing | Found Prototype Hackware 27803 | -3/Testing | Found Prototype Ballistic Cannon 27803 | -3/Testing | Identified Omega Cannon 27846 | -3/Testing | Identified System Mapper 28199 | -3/Testing | Spotted PH-Y74GSFBJS4 28206 | -3/Testing | Allies destroyed PH-Y74GSFBJS4 28216 | -3/Testing | Found Corrupted Prototype Reactor 28225 | -3/Testing | Identified Zero-point Reactor 28228 | -3/Testing | Found Prototype Device 28245 | -3/Testing | Identified Exp. EM Disruption Field 28253 | -3/Testing | Found Prototype Device 28255 | -3/Testing | Identified Adv. Kinecellerator 28361 | -3/Testing | Found Prototype Protection 28361 | -3/Testing | Identified Hvy. Regenerative Plating 28365 | -3/Testing | Found Prototype Protection 28365 | -3/Testing | Identified Lgt. Regenerative Plating 28368 | -3/Testing | Found Prototype Protection 28368 | -3/Testing | Identified Med. Regenerative Plating 28652 | -3/Testing | Build established: Commander-Assassin 28740 | -3/Testing | Identified exit to Research 28746 | -3/Testing | Entered Research 28746 | -2/Research | Accompanied by 4 allies 28746 | -2/Research | Evolved 2 slots: Utility x2 28777 | -2/Research | Found Fusion Bomb Launcher 28855 | -2/Research | Master 8k assimilated hostile G-73 Enforcer 28856 | -2/Research | Master 8j assimilated hostile G-73 Enforcer 28912 | -2/Research | Lost 6 allies 29165 | -2/Research | Identified exit to Access 29165 | -2/Research | Identified exit to Quarantine 29309 | -2/Research | Found Prototype Reactor 29324 | -2/Research | Identified Vortex Chain Reactor 29440 | -2/Research | Watched by a mysterious "MATRIX" hacker. 29534 | -2/Research | Found Prototype Launcher 29534 | -2/Research | Identified Enh. Gamma Bomb Array 29578 | -2/Research | Entered Quarantine 29598 | -2/Quarantine | Found Alien Energy Cannon 29684 | -2/Quarantine | Central database locked down 29684 | -2/Quarantine | Identified Transdimensional Reconstructor 29781 | -2/Quarantine | Found Alien Slashing Weapon 29781 | -2/Quarantine | Identified Sigix Broadsword 29814 | -2/Quarantine | Cryocooling Duct disabled 29829 | -2/Quarantine | Ambient heat levels rising (+20) 29829 | -2/Quarantine | Non-combat units ordered to evacuate 29859 | -2/Quarantine | Build established: Hacker-Assassin 29939 | -2/Quarantine | Found Alien Artifact 30188 | -2/Quarantine | Found Alien Reactor 30753 | -2/Quarantine | Found Alien Impact Weapon 30915 | -2/Quarantine | Discovered exit to Access (range 8) 31034 | -2/Quarantine | Identified Core Stripper 31042 | -2/Quarantine | Spotted Fortress 31061 | -2/Quarantine | Destroyed Fortress 31075 | -2/Quarantine | Found Vortex Chain Reactor 31101 | -2/Quarantine | Found Prototype Device 31101 | -2/Quarantine | Identified Exp. EM Shield 31105 | -2/Quarantine | Found Prototype Device 31105 | -2/Quarantine | Identified Thermal Barrier 31111 | -2/Quarantine | Found Prototype Device 31111 | -2/Quarantine | Identified Exp. Force Field 31190 | -2/Quarantine | Discovered new exit (range 6) 31190 | -2/Quarantine | Discovered new exit (range 6) 31194 | -2/Quarantine | Identified exit to Protoforge 31196 | -2/Quarantine | Entered Protoforge 31196 | -2/Protoforge | Accompanied by 1 ally 31223 | -2/Protoforge | Spotted Hotshot 31223 | -2/Protoforge | Spotted Hotshot 31235 | -2/Protoforge | Superfortress began startup sequence 31237 | -2/Protoforge | Destroyed Hotshot 31282 | -2/Protoforge | Destroyed Hotshot 31375 | -2/Protoforge | Spotted Hotshot 31377 | -2/Protoforge | Spotted B-90 Cyclops 31453 | -2/Protoforge | Destroyed B-90 Cyclops 31524 | -2/Protoforge | Spotted Hotshot 31564 | -2/Protoforge | Destroyed Hotshot 31661 | -2/Protoforge | Found Prototype Protection 31661 | -2/Protoforge | Identified Cep. Core Shell 31709 | -2/Protoforge | Identified Matter Drive 31718 | -2/Protoforge | Additional patrols dispatched to research labs 31730 | -2/Protoforge | Crushed by falling debris 31739 | -2/Protoforge | Spotted Decapitator 31739 | -2/Protoforge | Spotted Decapitator 31739 | -2/Protoforge | Spotted Immortal 31739 | -2/Protoforge | Spotted Immortal 31763 | -2/Protoforge | Destroyed Decapitator 31775 | -2/Protoforge | Destroyed Decapitator 31789 | -2/Protoforge | Destroyed Immortal 31795 | -2/Protoforge | Destroyed Immortal 31817 | -2/Protoforge | Forge Plexus network access discovered 31858 | -2/Protoforge | Build established: Hacker-Mutant 31923 | -2/Protoforge | Found Crosscalibrator 31939 | -2/Protoforge | Spotted Immortal 31942 | -2/Protoforge | Spotted Immortal 31952 | -2/Protoforge | Destroyed Immortal 31960 | -2/Protoforge | Destroyed Immortal 31966 | -2/Protoforge | Spotted Decapitator 31966 | -2/Protoforge | Spotted Decapitator 31966 | -2/Protoforge | Spotted Decapitator 31972 | -2/Protoforge | Destroyed Decapitator 31976 | -2/Protoforge | Destroyed Decapitator 31976 | -2/Protoforge | Destroyed Decapitator 31998 | -2/Protoforge | Found Cep. Energy Mantle 32004 | -2/Protoforge | Found Cep. Phase Shift Module 32020 | -2/Protoforge | Found Cep. Reaction Jets 32024 | -2/Protoforge | Found Cep. RG22 Armor 32030 | -2/Protoforge | Found Cep. RG22 Armor 32038 | -2/Protoforge | Found Cep. Beam Splitter 32043 | -2/Protoforge | Found Faulty Cep. Energy Mantle 32144 | -2/Protoforge | Found Exp. Jetlance 32153 | -2/Protoforge | Found Cep. Lightning Penetrator 32158 | -2/Protoforge | Found Faulty Cep. Plasma Driver 32161 | -2/Protoforge | Found Faulty Cep. Plasma Driver 32175 | -2/Protoforge | Found Faulty Cep. Lightning Penetrator 32177 | -2/Protoforge | Found Faulty Cep. Plasma Driver 32189 | -2/Protoforge | Found Cep. Helical Railcannon 32193 | -2/Protoforge | Found Cep. Helical Railcannon 32274 | -2/Protoforge | Found Cep. NT7 Matterbank 32278 | -2/Protoforge | Found Cep. Chromion Battery 32290 | -2/Protoforge | Found Cep. Matter Streamer 32446 | -2/Protoforge | First assault squad dispatched 32542 | -2/Protoforge | System corruption reached 10% 32757 | -2/Protoforge | Found Cep. Rapid Grenade Launcher 32760 | -2/Protoforge | Found Cep. Smart ZDS 32788 | -2/Protoforge | Found Cep. Rapid Grenade Launcher 32791 | -2/Protoforge | Found Cep. Tiamat Rocket Array 32896 | -2/Protoforge | Found Cep. Nanofilaments [Tensile] 32896 | -2/Protoforge | Installed Cep. Nanofilaments [Tensile], 3 resistances modified: KI +20%, TH -10%, I +20% 33025 | -2/Protoforge | Spotted AP7-3 33029 | -2/Protoforge | Spotted AP7-3 33059 | -2/Protoforge | Destroyed AP7-3 33071 | -2/Protoforge | Destroyed AP7-3 33184 | -2/Protoforge | Found Cep. Core Analysis Suite 33189 | -2/Protoforge | Found Cep. Dimensional Manipulator 33194 | -2/Protoforge | Found Cep. Thermoelectric Network 33197 | -2/Protoforge | Identified Subatomic Replicator 33197 | -2/Protoforge | Used Subatomic Replicator to replicate Faulty Cep. Cloak Mesh 33199 | -2/Protoforge | Found Faulty Cep. Cloak Mesh 33207 | -2/Protoforge | Found Cep. Blasthammer 33377 | -2/Protoforge | Build established: Scavenger-Mutant 33490 | -2/Protoforge | Spotted Decapitator 33600 | -2/Protoforge | Destroyed 11 combat bots 33679 | -2/Protoforge | Found Cep. Biometal Exoskeleton 33684 | -2/Protoforge | Found Cep. Biometal Exoskeleton 33850 | -2/Protoforge | Build established: Hacker-Mutant 33956 | -2/Protoforge | Spotted Overlord 34031 | -2/Protoforge | Destroyed Overlord 34045 | -2/Protoforge | Lost 3 parts (1p2u) 34150 | -2/Protoforge | UFD initiated attack on Protoforge (Readiness: High) 34150 | -2/Protoforge | Loaded intel: 3 recycling unit locations 34170 | -2/Protoforge | Spotted EXE-6 34186 | -2/Protoforge | Optimus greeted in Protoforge 34188 | -2/Protoforge | Found Prototype Processor 34188 | -2/Protoforge | Identified Exp. Core Analyzer 34191 | -2/Protoforge | Found Prototype Processor 34191 | -2/Protoforge | Identified Exp. Armor Integrity Analyzer 34208 | -2/Protoforge | Spotted Decapitator 34210 | -2/Protoforge | Spotted Decapitator 34240 | -2/Protoforge | Spotted EXE-6 34247 | -2/Protoforge | Destroyed EXE-6 34259 | -2/Protoforge | Found Cep. XC Strikerail 34275 | -2/Protoforge | Spotted AP7-3 34275 | -2/Protoforge | Spotted AP7-3 34283 | -2/Protoforge | Destroyed AP7-3 34307 | -2/Protoforge | Destroyed AP7-3 34338 | -2/Protoforge | Lost 9 allies 34339 | -2/Protoforge | Met 7R-MNS 34485 | -2/Protoforge | UFD reported confirmed Drillbomb installation 34525 | -2/Protoforge | Lost 3 allies 34541 | -2/Protoforge | Spotted Striker 34542 | -2/Protoforge | Spotted Executioner 34557 | -2/Protoforge | Destroyed Striker 34580 | -2/Protoforge | Destroyed 10 combat bots 34600 | -2/Protoforge | Build established: Scavenger-Mutant 34609 | -2/Protoforge | Spotted Executioner 34609 | -2/Protoforge | Spotted Executioner 34610 | -2/Protoforge | Discovered exit to Access (range 19) 34610 | -2/Protoforge | Spotted Striker 34610 | -2/Protoforge | Spotted Executioner 34610 | -2/Protoforge | Destroyed Executioner 34612 | -2/Protoforge | Destroyed Executioner 34619 | -2/Protoforge | Destroyed Executioner 34622 | -2/Protoforge | Destroyed Striker 34625 | -2/Protoforge | Spotted Executioner 34627 | -2/Protoforge | Spotted Executioner 34638 | -2/Protoforge | Destroyed Executioner 34659 | -2/Protoforge | Destroyed 17 combat bots 34700 | -2/Protoforge | Spotted Striker 34700 | -2/Protoforge | Spotted Executioner 34700 | -2/Protoforge | Spotted Executioner 34700 | -2/Protoforge | Spotted Striker 34705 | -2/Protoforge | Destroyed Striker 34709 | -2/Protoforge | Destroyed Executioner 34723 | -2/Protoforge | Destroyed Executioner 34725 | -2/Protoforge | Spotted Striker 34725 | -2/Protoforge | Spotted Striker 34736 | -2/Protoforge | Destroyed Striker 34741 | -2/Protoforge | Destroyed Striker 34762 | -2/Protoforge | Destroyed 17 combat bots 34800 | -2/Protoforge | Spotted Executioner 34800 | -2/Protoforge | Spotted Striker 34800 | -2/Protoforge | Spotted Striker 34800 | -2/Protoforge | Spotted Striker 34812 | -2/Protoforge | UFD reported confirmed Drillbomb installation 34820 | -2/Protoforge | Destroyed Striker 34825 | -2/Protoforge | Spotted Executioner 34829 | -2/Protoforge | Destroyed Executioner 34832 | -2/Protoforge | Spotted Executioner 34842 | -2/Protoforge | Destroyed Executioner 34883 | -2/Protoforge | UFD reported confirmed Drillbomb installation 34897 | -2/Protoforge | Destroyed 16 combat bots 34900 | -2/Protoforge | Spotted Executioner 34900 | -2/Protoforge | Spotted Executioner 34900 | -2/Protoforge | Spotted Executioner 34900 | -2/Protoforge | Spotted Executioner 34902 | -2/Protoforge | Destroyed Executioner 34905 | -2/Protoforge | Destroyed Executioner 34905 | -2/Protoforge | Destroyed Executioner 34905 | -2/Protoforge | Destroyed Executioner 34925 | -2/Protoforge | Spotted Striker 34925 | -2/Protoforge | Spotted Striker 34926 | -2/Protoforge | Destroyed 10 combat bots 34928 | -2/Protoforge | Destroyed Striker 34931 | -2/Protoforge | Lost 4 allies 34947 | -2/Protoforge | Destroyed 02F13-K 35000 | -2/Protoforge | Spotted Executioner 35000 | -2/Protoforge | Spotted Striker 35000 | -2/Protoforge | Spotted Executioner 35000 | -2/Protoforge | Spotted Striker 35002 | -2/Protoforge | Destroyed Executioner 35012 | -2/Protoforge | Destroyed Executioner 35012 | -2/Protoforge | Destroyed Striker 35012 | -2/Protoforge | Destroyed Striker 35026 | -2/Protoforge | Spotted Executioner 35026 | -2/Protoforge | Spotted Striker 35033 | -2/Protoforge | Destroyed Striker 35054 | -2/Protoforge | Destroyed Executioner 35075 | -2/Protoforge | Destroyed 20 combat bots 35102 | -2/Protoforge | Spotted Striker 35102 | -2/Protoforge | Spotted Executioner 35102 | -2/Protoforge | Spotted Executioner 35102 | -2/Protoforge | Spotted Striker 35102 | -2/Protoforge | Destroyed Executioner 35102 | -2/Protoforge | Destroyed Executioner 35114 | -2/Protoforge | Destroyed Striker 35114 | -2/Protoforge | Destroyed Striker 35123 | -2/Protoforge | UFD reported confirmed Drillbomb installation 35127 | -2/Protoforge | Spotted Executioner 35128 | -2/Protoforge | Destroyed Striker 35134 | -2/Protoforge | Destroyed Executioner 35169 | -2/Protoforge | Destroyed 21 combat bots 35254 | -2/Protoforge | Spotted Executioner 35254 | -2/Protoforge | Spotted Striker 35254 | -2/Protoforge | Spotted Executioner 35257 | -2/Protoforge | Spotted Executioner 35257 | -2/Protoforge | Spotted Executioner 35259 | -2/Protoforge | Spotted Striker 35284 | -2/Protoforge | Destroyed Executioner 35284 | -2/Protoforge | Destroyed Executioner 35285 | -2/Protoforge | Core integrity fell below 50% 35297 | -2/Protoforge | Destroyed Executioner 35310 | -2/Protoforge | Spotted Striker 35311 | -2/Protoforge | Destroyed Striker 35314 | -2/Protoforge | Spotted Striker 35315 | -2/Protoforge | Lost 8 allies 35315 | -2/Protoforge | Destroyed Striker 35344 | -2/Protoforge | Spotted Striker 35348 | -2/Protoforge | Destroyed Striker 35382 | -2/Protoforge | Destroyed 24 combat bots 35401 | -2/Protoforge | Spotted Striker 35402 | -2/Protoforge | Spotted Striker 35403 | -2/Protoforge | Destroyed Striker 35404 | -2/Protoforge | Spotted Executioner 35411 | -2/Protoforge | Destroyed Striker 35425 | -2/Protoforge | Spotted Striker 35427 | -2/Protoforge | Spotted Striker 35500 | -2/Protoforge | Destroyed Executioner 35500 | -2/Protoforge | Spotted Striker 35500 | -2/Protoforge | Spotted Executioner 35502 | -2/Protoforge | Spotted Executioner 35505 | -2/Protoforge | Destroyed Executioner 35505 | -2/Protoforge | Destroyed Executioner 35510 | -2/Protoforge | Destroyed Striker 35525 | -2/Protoforge | Spotted Executioner 35525 | -2/Protoforge | Spotted Executioner 35529 | -2/Protoforge | Destroyed Executioner 35539 | -2/Protoforge | UFD reported confirmed Drillbomb installation 35552 | -2/Protoforge | Destroyed 15 combat bots 35593 | -2/Protoforge | UFD reported confirmed Drillbomb installation 35600 | -2/Protoforge | Spotted Striker 35600 | -2/Protoforge | Destroyed Striker 35600 | -2/Protoforge | Spotted Striker 35602 | -2/Protoforge | Destroyed Striker 35602 | -2/Protoforge | Spotted Executioner 35603 | -2/Protoforge | System corruption reached 30% 35604 | -2/Protoforge | Destroyed Executioner 35616 | -2/Protoforge | Destroyed Striker 35625 | -2/Protoforge | Spotted Striker 35625 | -2/Protoforge | Spotted Striker 35636 | -2/Protoforge | Destroyed Striker 35642 | -2/Protoforge | Destroyed Striker 35660 | -2/Protoforge | Lost 4 parts (1p2u1w) 35663 | -2/Protoforge | Destroyed 18 combat bots 35703 | -2/Protoforge | Spotted Striker 35705 | -2/Protoforge | Spotted Executioner 35720 | -2/Protoforge | Spotted Executioner 35724 | -2/Protoforge | Destroyed Striker 35727 | -2/Protoforge | Spotted Striker 35728 | -2/Protoforge | Spotted Striker 35730 | -2/Protoforge | Destroyed Executioner 35735 | -2/Protoforge | Destroyed Executioner 35764 | -2/Protoforge | Destroyed 12 combat bots 35769 | -2/Protoforge | Lost 6 parts (1p2n3w) 35771 | -2/Protoforge | UFD reported confirmed Drillbomb installation 35839 | -2/Protoforge | Found Cep. Core Shell 35842 | -2/Protoforge | Found Cep. Core Shell 35843 | -2/Protoforge | Spotted Striker 35844 | -2/Protoforge | Found Cep. Core Shell 35846 | -2/Protoforge | Spotted Striker 35852 | -2/Protoforge | Core integrity fell below 20% 35866 | -2/Protoforge | Destroyed Striker 35877 | -2/Protoforge | Destroyed Striker 35925 | -2/Protoforge | Lost 5 parts (1p2n2u) 35931 | -2/Protoforge | Found Cep. Core Shell 35935 | -2/Protoforge | Found Cep. Core Shell 35938 | -2/Protoforge | Found Cep. Core Shell 35942 | -2/Protoforge | Found Cep. Core Shell 35946 | -2/Protoforge | UFD reported confirmed Drillbomb installation 35965 | -2/Protoforge | Spotted Executioner 35967 | -2/Protoforge | Spotted Striker 35968 | -2/Protoforge | Destroyed Executioner 35971 | -2/Protoforge | Destroyed Striker 36004 | -2/Protoforge | Spotted Executioner 36005 | -2/Protoforge | Destroyed Executioner 36016 | -2/Protoforge | Spotted Striker 36019 | -2/Protoforge | Spotted Striker 36020 | -2/Protoforge | Destroyed Striker 36030 | -2/Protoforge | Destroyed Striker 36073 | -2/Protoforge | Destroyed 13 combat bots 36118 | -2/Protoforge | Spotted Executioner 36122 | -2/Protoforge | Spotted Striker 36124 | -2/Protoforge | Spotted Executioner 36126 | -2/Protoforge | Destroyed Executioner 36126 | -2/Protoforge | Destroyed Executioner 36129 | -2/Protoforge | Destroyed Striker 36183 | -2/Protoforge | Found Exp. Targeting Computer 36203 | -2/Protoforge | Spotted Executioner 36204 | -2/Protoforge | Spotted Executioner 36204 | -2/Protoforge | Spotted Executioner 36205 | -2/Protoforge | Spotted Striker 36213 | -2/Protoforge | Destroyed Executioner 36218 | -2/Protoforge | Destroyed Executioner 36225 | -2/Protoforge | Spotted Striker 36225 | -2/Protoforge | Spotted Striker 36232 | -2/Protoforge | Destroyed Executioner 36242 | -2/Protoforge | Destroyed Striker 36270 | -2/Protoforge | Destroyed Striker 36291 | -2/Protoforge | UFD reported confirmed Drillbomb installation 36297 | -2/Protoforge | Lost 19 parts (2p6n7u4w) 36306 | -2/Protoforge | Spotted Striker 36307 | -2/Protoforge | Destroyed 18 combat bots 36308 | -2/Protoforge | Destroyed Striker 36308 | -2/Protoforge | Spotted Striker 36315 | -2/Protoforge | Destroyed Striker 36356 | -2/Protoforge | Destroyed 7 combat bots 36750 | -2/Protoforge | Spotted Striker 36759 | -2/Protoforge | Spotted Executioner 36774 | -2/Protoforge | Destroyed Executioner 36780 | -2/Protoforge | Destroyed Striker 36783 | -2/Protoforge | Lost 3 allies 36819 | -2/Protoforge | Spotted Striker 36824 | -2/Protoforge | Spotted Striker 36900 | -2/Protoforge | Lost 3 allies 36900 | -2/Protoforge | Spotted Executioner 36900 | -2/Protoforge | Spotted Executioner 36900 | -2/Protoforge | Spotted Striker 36901 | -2/Protoforge | Destroyed Striker 36902 | -2/Protoforge | Spotted Striker 36903 | -2/Protoforge | Destroyed Executioner 36912 | -2/Protoforge | Destroyed Executioner 36926 | -2/Protoforge | Spotted Executioner 36928 | -2/Protoforge | Spotted Executioner 36929 | -2/Protoforge | Destroyed Executioner 36930 | -2/Protoforge | P-80 Master assimilated allied 03-4V2(E) 36934 | -2/Protoforge | Destroyed Executioner 36955 | -2/Protoforge | Destroyed 17 combat bots 36958 | -2/Protoforge | UFD reported confirmed Drillbomb installation 36959 | -2/Protoforge | UFD began Drillbomb countdown 37059 | *** | Defending 0bPrime! Last Messages --------------- those who spit bolts to get us here today. 37050_ 0bP_NET: PK-764! For learning about those Assembled things over in 0b10 the hard way, so we didn't have to. 37051_ 0bP_NET: Also Frameworth for that epic save with the barrage of overtuned dakka. Respect the dakka. 37052_ 0bP_NET: And S4-LTN's pet Recycler. I didn't mean it, but I was short on matter and it was a natural reflex. 37053_ 0bP_NET: Oh yeah, T-6 by the way. 37054_ 0bP_NET: LU-1G1, we know you're out there, digging away, so no moment of silence needed for you. 37055_ 0bP_NET: DD-05H though, you were a good one, we'll never forget the way you smashed your way west and just never stopped smashing. 37056_ 0bP_NET: Well my eulogizing is soon to be interrupted by scenes of half of Protoforge collapsing in on itself. Be careful out there. 37057_ 0bP_NET: T-2! 37058_ 0bP_NET: And that's a wrap. Map ----- +----------------------------------------------------+ | """""""""""""""" "% " "#????????????????? | | """""""""""""""" " " " "" " "#????????????????? | | """""""""""""""" " "#????????????????? | | """""""""""""""" " #????????????????? | | """""""""""""""" " " #????????????????? | | """""""""""""""" ##???????????????? | | """""""""""""""" " #???????????????? | | """""""""""""""" " "" "" #???????????????? | | """""""""""""""" " "" " ##???????????????? | | """"""""""""""" "" " " #????????????????? | | """"""""""""""" %%" " #????????????????? | | """""""""""""""% "" """ #????????????????? | | """""""""""""" " " #????????????????? | | """"""""""""" ss " " "" #????????????????? | | """""""""""" " j " """" #????????????????? | | """"""""""" % ESS " " """ #????????????????? | | """""""""" " SS " ""* #????????????????? | | """"""""" "" % " "" #????????????????? | | """""" "" =" #????????????????? | | " " !%"" """ #????????????????? | | " "" "" % """" #????????????????? | | " " j""" ###??????????????? | | " "" "" """ "" <&#??????????????? | | " "" jSS <&#??????????????? | | """ SS% <&#??????????????? | | """ " "" @"""" <&#??????????????? | | % "" " "" <&#??????????????? | | "" "" "" <&#??????????????? | | "" " "" ###??????????????? | | " "" " #????????????????? | | " " #????????????????? | | """""""""" """ #????????????????? | | """ #????????????????? | | """""""""" " " " """""""#????????????????? | | ###################+++###########????????????????? | | ??????????????#"" ""#??????????????????????? | | ????????????###" "###????????????????????? | | ????????????#"" ""#????????????????????? | | ????????????#"" ""#????????????????????? | | ????????????#"" ""#????????????????????? | | ????????????#"Y "#????????????????????? | | ????????????#"" ""#????????????????????? | | ????????????#"" ""#????????????????????? | | ????????????#"" ""#????????????????????? | | ????????????###" "###????????????????????? | | ??????????????#"" ""#??????????????????????? | | ??????????????###"" """###??????????????????????? | | ????????????????#"""""""#????????????????????????? | | ????????????????#########????????????????????????? | | ?????????????????????????????????????????????????? | +----------------------------------------------------+ Best States ------------- Heat Dissipation 95 Coolant Potential 100 Energy Generation 71 Energy Capacity 2505 Matter Stores 1050 Matter Capacity 1050 Sight Range 24 Robot Scan Range 18 Terrain Scan Density 10 Jamming Range 16 Cloak Strength 9 Additional Mass Support 30 Corruption Block 15 Armor Coverage 825 Resistance: KI 20 Resistance: TH 75 Resistance: EM 75 Resistance: I 20 Core Shielding 90 Propulsion Shielding 66 Weapon Shielding 90 Phase Shifting 25 Evasion (%) 88 Targeting Accuracy 28 Melee Accuracy 12 Core Analysis 15 Recoil Reduction 6 Matter Filtering 30 Kinecelleration 50 Offensive Hacking 20 Defensive Hacking 20 Relay Coupler Types 2 Relay Coupler Value 100 Item Schematics ----------------- Gatling Laser | -9/Recycling | Hacked Hvy. Treads | -6/Factory | Hacked Imp. Heavy Armor Plating | -5/Factory | Scanalyzed Assault Drone Bay | -4/Zhirov | Free Exp. Heat Sink | -4/Zhirov | Free Exp. Optical Array | -4/Zhirov | Free Imp. Arc Thrower | -4/Zhirov | Free Exp. Terrain Scan Processor | -3/Testing | Archive Cld. Phase Gun | -3/Testing | Archive Imp. Thermal Defense Suite | -3/Testing | Archive Hvy. Proton Cannon | -3/Testing | Archive Adv. Gravity Neutralizer | -2/Protoforge | Archive Molecular Scythe | -2/Protoforge | Archive Robot Schematics ------------------ L-61 Swordsman | -3/Testing | Archive Fabricated ------------ Nothing Repaired ---------- Imp. Deuterium Engine | 30% | -6/Factory Imp. Cooling System | 67% | -6/Factory Hvy. Shield Leg | 9% | -5/Factory Studied --------- Flexi-carbon Leg | -6/Factory | Hacked Arm. Leg | -6/Factory | Hacked KE Penetrator | -5/Factory | Hacked Hyp. Coil Gun | -5/Factory | Hacked Hvy. Machine Gun | -5/Factory | Hacked Hyp. Gauss Cannon | -5/Factory | Hacked Myomer Leg | -4/Factory | Hacked Neutrino Core | -4/Factory | Hacked Com. HERF Cannon | -3/Research | Hacked Hvy. Shield Leg | -2/Quarantine | Hacked Biometal Leg | -2/Quarantine | Hacked Quantum Reactor | -2/Protoforge | Hacked Alien Tech Used ----------------- Core Expander Integrated Dissipator Sigix Broadsword Core Stripper Matter Drive Concept Nanofilaments [Tensile] Subatomic Replicator Achievements -------------- Red Leader White Hat Challenges ------------ None Game ------ Seed IonPersonalChainsaw Manual? 0 Play Time 05:36:32 Cumulative 2163.1 hours Start 2026.02.27 @ 02:51:27 End 2026.02.28 @ 12:24:02 Sessions 5 Manual Loads 0 Difficulty Rogue Special Mode None Game No. 1370 Rogue 1366 Adventurer 4 Explorer 0 Win Type 9 Total 303 Types 227/14/24/11/3/1/4/10/5/4 Lore% 98 Gallery% 96 Achievement% 90 Wizard Run 0 Options --------- Layout 2 ASCII 0 Keyboard 1 Movement Vi Keybinds 0 Fullscreen 0 Font 24/Terminus Map View 59x48 Zoom Use 0% Tactical HUD 1 Map Filters NONE Filters NONE Steam 1 RUN: 7b9d716f-30ce-4afb-96dd-f79f6ee501ca